Department,Entity,Date of Payment,Expense Type,Expense Area,Supplier,Transaction Number,Amount,Description,Supplier Post Code,Supplier Type
"Department for Business, Energy and Industrial Strategy","Department for Business, Energy and Industrial Strategy",15/12/2021 00:00,Stationery,"Trade, International, The Union & Analysis - Analysis Directorate","Personal Expense, Name Withheld",420325,26.00,Default-stationery,,EMPLOYEE
"Department for Business, Energy and Industrial Strategy","Department for Business, Energy and Industrial Strategy",16/12/2021 00:00,Subsistence Uk,"Trade, International, The Union & Analysis - Analysis Directorate","Personal Expense, Name Withheld",420679,4.00,Mf Devolved Admin-subsistence Uk,,EMPLOYEE
"Department for Business, Energy and Industrial Strategy","Department for Business, Energy and Industrial Strategy",16/12/2021 00:00,Subsistence Uk,"Trade, International, The Union & Analysis - Analysis Directorate","Personal Expense, Name Withheld",420679,5.00,Mf Devolved Admin-subsistence Uk,,EMPLOYEE
"Department for Business, Energy and Industrial Strategy","Department for Business, Energy and Industrial Strategy",16/12/2021 00:00,Subsistence Uk,"Trade, International, The Union & Analysis - Analysis Directorate","Personal Expense, Name Withheld",420679,5.00,Mf Devolved Admin-subsistence Uk,,EMPLOYEE
"Department for Business, Energy and Industrial Strategy","Department for Business, Energy and Industrial Strategy",24/12/2021 00:00,Office-related Expenditure,"Trade, International, The Union & Analysis - Analysis Directorate","Personal Expense, Name Withheld",422018,32.49,Mf Devolved Admin-office-related Expenditure,,EMPLOYEE
"Department for Business, Energy and Industrial Strategy","Department for Business, Energy and Industrial Strategy",14/12/2021 00:00,R & D Economic Consultancy And Research,"Trade, International, The Union & Analysis - Analysis Directorate",Office For National Statistics,420038,6664.49,Construction: Statistics And Other Sponsorship Activities-r & D Economic Consultancy And Research,NP10 8XG,WGA ONLY
"Department for Business, Energy and Industrial Strategy","Department for Business, Energy and Industrial Strategy",14/12/2021 00:00,R & D Economic Consultancy And Research,"Trade, International, The Union & Analysis - Analysis Directorate",Office For National Statistics,420038,6664.49,Construction: Statistics And Other Sponsorship Activities-r & D Economic Consultancy And Research,NP10 8XG,WGA ONLY
"Department for Business, Energy and Industrial Strategy","Department for Business, Energy and Industrial Strategy",14/12/2021 00:00,R & D Economic Consultancy And Research,"Trade, International, The Union & Analysis - Analysis Directorate",Office For National Statistics,420038,6664.50,Construction: Statistics And Other Sponsorship Activities-r & D Economic Consultancy And Research,NP10 8XG,WGA ONLY
"Department for Business, Energy and Industrial Strategy","Department for Business, Energy and Industrial Strategy",14/12/2021 00:00,R & D Economic Consultancy And Research,"Trade, International, The Union & Analysis - Analysis Directorate",Office For National Statistics,420038,6664.50,Construction: Statistics And Other Sponsorship Activities-r & D Economic Consultancy And Research,NP10 8XG,WGA ONLY
"Department for Business, Energy and Industrial Strategy","Department for Business, Energy and Industrial Strategy",15/12/2021 00:00,Ict Outsourcing & Maintenance/Support,"Trade, International, The Union & Analysis - Analysis Directorate",Logix It Recruitment Ltd,420363,3528.00,Mf Devolved Admin-ict Outsourcing & Maintenance/Support,BR1 1NA,VENDOR
"Department for Business, Energy and Industrial Strategy","Department for Business, Energy and Industrial Strategy",15/12/2021 00:00,Ict Outsourcing & Maintenance/Support,"Trade, International, The Union & Analysis - Analysis Directorate",Logix It Recruitment Ltd,420392,2650.00,Mf Devolved Admin-ict Outsourcing & Maintenance/Support,BR1 1NA,VENDOR
"Department for Business, Energy and Industrial Strategy","Department for Business, Energy and Industrial Strategy",08/12/2021 00:00,Uk Subscriptions,"Trade, International, The Union & Analysis - Analysis Directorate",Springboard Research Ltd,419405,13657.50,Mf Devolved Admin-uk Subscriptions,MK14 6PH,VENDOR
"Department for Business, Energy and Industrial Strategy","Department for Business, Energy and Industrial Strategy",17/12/2021 00:00,Subsistence Uk,"Trade, International, The Union & Analysis - Analysis Directorate","Personal Expense, Name Withheld",420893,8.80,Mf Devolved Admin-subsistence Uk,,EMPLOYEE
"Department for Business, Energy and Industrial Strategy","Department for Business, Energy and Industrial Strategy",17/12/2021 00:00,Subsistence Uk,"Trade, International, The Union & Analysis - Analysis Directorate","Personal Expense, Name Withheld",420893,15.00,Mf Devolved Admin-subsistence Uk,,EMPLOYEE
"Department for Business, Energy and Industrial Strategy","Department for Business, Energy and Industrial Strategy",17/12/2021 00:00,Subsistence Uk,"Trade, International, The Union & Analysis - Analysis Directorate","Personal Expense, Name Withheld",420893,15.00,Mf Devolved Admin-subsistence Uk,,EMPLOYEE
"Department for Business, Energy and Industrial Strategy","Department for Business, Energy and Industrial Strategy",22/12/2021 00:00,Business Rates,"Trade, International, The Union & Analysis - Analysis Directorate",National Bureau Of Economic Research Inc,421024,2016.95,Mf Devolved Admin-business Rates,MA 02138-5398,VENDOR
"Department for Business, Energy and Industrial Strategy","Department for Business, Energy and Industrial Strategy",14/12/2021 00:00,R & D Economic Consultancy And Research,"Trade, International, The Union & Analysis - Analysis Directorate",Experian Ltd,419511,30000.00,Energy Satistics Research And Analysis-r & D Economic Consultancy And Research,NG80 1ZZ,VENDOR
"Department for Business, Energy and Industrial Strategy","Department for Business, Energy and Industrial Strategy",23/12/2021 00:00,R & D Economic Consultancy And Research,"Trade, International, The Union & Analysis - Analysis Directorate",Office For National Statistics,420039,4173.24,Energy Satistics Research And Analysis-r & D Economic Consultancy And Research,NP10 8XG,WGA ONLY
"Department for Business, Energy and Industrial Strategy","Department for Business, Energy and Industrial Strategy",23/12/2021 00:00,R & D Economic Consultancy And Research,"Trade, International, The Union & Analysis - Analysis Directorate",Office For National Statistics,420039,6585.58,Energy Satistics Research And Analysis-r & D Economic Consultancy And Research,NP10 8XG,WGA ONLY
"Department for Business, Energy and Industrial Strategy","Department for Business, Energy and Industrial Strategy",02/12/2021 00:00,Rail Travel Uk,"Trade, International, The Union & Analysis - Analysis Directorate","Personal Expense, Name Withheld",417904,26.00,Mf Devolved Admin-rail Travel Uk,,EMPLOYEE
"Department for Business, Energy and Industrial Strategy","Department for Business, Energy and Industrial Strategy",07/12/2021 00:00,Stationery,"Trade, International, The Union & Analysis - Analysis Directorate","Personal Expense, Name Withheld",418525,52.00,Mf Devolved Admin-stationery,,EMPLOYEE
"Department for Business, Energy and Industrial Strategy","Department for Business, Energy and Industrial Strategy",07/12/2021 00:00,Rail Travel Uk,"Trade, International, The Union & Analysis - Analysis Directorate","Personal Expense, Name Withheld",418646,5.00,Mf Devolved Admin-rail Travel Uk,,EMPLOYEE
"Department for Business, Energy and Industrial Strategy","Department for Business, Energy and Industrial Strategy",07/12/2021 00:00,Other Travel,"Trade, International, The Union & Analysis - Analysis Directorate","Personal Expense, Name Withheld",418646,8.80,Mf Devolved Admin-other Travel,,EMPLOYEE
"Department for Business, Energy and Industrial Strategy","Department for Business, Energy and Industrial Strategy",07/12/2021 00:00,Rail Travel Uk,"Trade, International, The Union & Analysis - Analysis Directorate","Personal Expense, Name Withheld",418646,27.05,Mf Devolved Admin-rail Travel Uk,,EMPLOYEE
"Department for Business, Energy and Industrial Strategy","Department for Business, Energy and Industrial Strategy",13/12/2021 00:00,Subsistence Uk,"Trade, International, The Union & Analysis - Analysis Directorate","Personal Expense, Name Withheld",419910,3.55,Mf Devolved Admin-subsistence Uk,,EMPLOYEE
"Department for Business, Energy and Industrial Strategy","Department for Business, Energy and Industrial Strategy",13/12/2021 00:00,Subsistence Uk,"Trade, International, The Union & Analysis - Analysis Directorate","Personal Expense, Name Withheld",419910,3.64,Mf Devolved Admin-subsistence Uk,,EMPLOYEE
"Department for Business, Energy and Industrial Strategy","Department for Business, Energy and Industrial Strategy",13/12/2021 00:00,Subsistence Uk,"Trade, International, The Union & Analysis - Analysis Directorate","Personal Expense, Name Withheld",419910,4.65,Mf Devolved Admin-subsistence Uk,,EMPLOYEE
"Department for Business, Energy and Industrial Strategy","Department for Business, Energy and Industrial Strategy",13/12/2021 00:00,Subsistence Uk,"Trade, International, The Union & Analysis - Analysis Directorate","Personal Expense, Name Withheld",419910,4.91,Mf Devolved Admin-subsistence Uk,,EMPLOYEE
"Department for Business, Energy and Industrial Strategy","Department for Business, Energy and Industrial Strategy",13/12/2021 00:00,Subsistence Uk,"Trade, International, The Union & Analysis - Analysis Directorate","Personal Expense, Name Withheld",419910,5.00,Mf Devolved Admin-subsistence Uk,,EMPLOYEE
"Department for Business, Energy and Industrial Strategy","Department for Business, Energy and Industrial Strategy",13/12/2021 00:00,Subsistence Uk,"Trade, International, The Union & Analysis - Analysis Directorate","Personal Expense, Name Withheld",419910,5.00,Mf Devolved Admin-subsistence Uk,,EMPLOYEE
"Department for Business, Energy and Industrial Strategy","Department for Business, Energy and Industrial Strategy",13/12/2021 00:00,Subsistence Uk,"Trade, International, The Union & Analysis - Analysis Directorate","Personal Expense, Name Withheld",419910,13.65,Mf Devolved Admin-subsistence Uk,,EMPLOYEE
"Department for Business, Energy and Industrial Strategy","Department for Business, Energy and Industrial Strategy",13/12/2021 00:00,Subsistence Uk,"Trade, International, The Union & Analysis - Analysis Directorate","Personal Expense, Name Withheld",419910,13.95,Mf Devolved Admin-subsistence Uk,,EMPLOYEE
"Department for Business, Energy and Industrial Strategy","Department for Business, Energy and Industrial Strategy",13/12/2021 00:00,Subsistence Uk,"Trade, International, The Union & Analysis - Analysis Directorate","Personal Expense, Name Withheld",419910,15.00,Mf Devolved Admin-subsistence Uk,,EMPLOYEE
"Department for Business, Energy and Industrial Strategy","Department for Business, Energy and Industrial Strategy",13/12/2021 00:00,Subsistence Uk,"Trade, International, The Union & Analysis - Analysis Directorate","Personal Expense, Name Withheld",419910,15.00,Mf Devolved Admin-subsistence Uk,,EMPLOYEE
"Department for Business, Energy and Industrial Strategy","Department for Business, Energy and Industrial Strategy",13/12/2021 00:00,Subsistence Uk,"Trade, International, The Union & Analysis - Analysis Directorate","Personal Expense, Name Withheld",419910,15.00,Mf Devolved Admin-subsistence Uk,,EMPLOYEE
"Department for Business, Energy and Industrial Strategy","Department for Business, Energy and Industrial Strategy",14/12/2021 00:00,Subsistence Uk,"Trade, International, The Union & Analysis - Analysis Directorate","Personal Expense, Name Withheld",420152,4.98,Mf Devolved Admin-subsistence Uk,,EMPLOYEE
"Department for Business, Energy and Industrial Strategy","Department for Business, Energy and Industrial Strategy",16/12/2021 00:00,Office-related Expenditure,"Trade, International, The Union & Analysis - Analysis Directorate","Personal Expense, Name Withheld",420666,98.21,Mf Devolved Admin-office-related Expenditure,,EMPLOYEE
"Department for Business, Energy and Industrial Strategy","Department for Business, Energy and Industrial Strategy",10/12/2021 00:00,Rail Travel Uk,"Trade, International, The Union & Analysis - Analysis Directorate","Personal Expense, Name Withheld",419791,64.00,Mf Devolved Admin-rail Travel Uk,,EMPLOYEE
"Department for Business, Energy and Industrial Strategy","Department for Business, Energy and Industrial Strategy",15/12/2021 00:00,Office-related Expenditure,"Trade, International, The Union & Analysis - Analysis Directorate","Personal Expense, Name Withheld",420432,114.99,Mf Devolved Admin-office-related Expenditure,,EMPLOYEE
"Department for Business, Energy and Industrial Strategy","Department for Business, Energy and Industrial Strategy",08/12/2021 00:00,Rail Travel Uk,Business Sectors - Advanced Manufacturing,"Personal Expense, Name Withheld",419350,9.80,Mf Devolved Admin-rail Travel Uk,,EMPLOYEE
"Department for Business, Energy and Industrial Strategy","Department for Business, Energy and Industrial Strategy",09/12/2021 00:00,Strategy Consultancy,Business Sectors - Advanced Manufacturing,Lnrs Data Services Ltd,419611,11715.00,Ali: Aerospace Market Analysis And Private Sector Advice-strategy Consultancy,SM2 5AS,VENDOR
"Department for Business, Energy and Industrial Strategy","Department for Business, Energy and Industrial Strategy",15/12/2021 00:00,Office-related Expenditure,Business Sectors - Advanced Manufacturing,"Personal Expense, Name Withheld",420430,5.99,Eu Exit Core Beis Staff: No Specific Dexeu Issue Adm-office-related Expenditure,,EMPLOYEE
"Department for Business, Energy and Industrial Strategy","Department for Business, Energy and Industrial Strategy",15/12/2021 00:00,Office-related Expenditure,Business Sectors - Advanced Manufacturing,"Personal Expense, Name Withheld",420430,12.99,Eu Exit Core Beis Staff: No Specific Dexeu Issue Adm-office-related Expenditure,,EMPLOYEE
"Department for Business, Energy and Industrial Strategy","Department for Business, Energy and Industrial Strategy",15/12/2021 00:00,Office-related Expenditure,Business Sectors - Advanced Manufacturing,"Personal Expense, Name Withheld",420430,18.99,Eu Exit Core Beis Staff: No Specific Dexeu Issue Adm-office-related Expenditure,,EMPLOYEE
"Department for Business, Energy and Industrial Strategy","Department for Business, Energy and Industrial Strategy",15/12/2021 00:00,Office-related Expenditure,Business Sectors - Advanced Manufacturing,"Personal Expense, Name Withheld",420430,182.49,Eu Exit Core Beis Staff: No Specific Dexeu Issue Adm-office-related Expenditure,,EMPLOYEE
"Department for Business, Energy and Industrial Strategy","Department for Business, Energy and Industrial Strategy",20/12/2021 00:00,Taxi Services Uk,Business Sectors - Advanced Manufacturing,"Personal Expense, Name Withheld",421053,8.00,Eu Exit Core Beis Staff: No Specific Dexeu Issue Adm-taxi Services Uk,,EMPLOYEE
"Department for Business, Energy and Industrial Strategy","Department for Business, Energy and Industrial Strategy",20/12/2021 00:00,Subsistence Uk,Business Sectors - Advanced Manufacturing,"Personal Expense, Name Withheld",421053,15.00,Eu Exit Core Beis Staff: No Specific Dexeu Issue Adm-subsistence Uk,,EMPLOYEE
"Department for Business, Energy and Industrial Strategy","Department for Business, Energy and Industrial Strategy",20/12/2021 00:00,Taxi Services Uk,Business Sectors - Advanced Manufacturing,"Personal Expense, Name Withheld",421053,25.40,Eu Exit Core Beis Staff: No Specific Dexeu Issue Adm-taxi Services Uk,,EMPLOYEE
"Department for Business, Energy and Industrial Strategy","Department for Business, Energy and Industrial Strategy",20/12/2021 00:00,Hotel & Accommodation Uk,Business Sectors - Advanced Manufacturing,"Personal Expense, Name Withheld",421053,115.43,Eu Exit Core Beis Staff: No Specific Dexeu Issue Adm-hotel & Accommodation Uk,,EMPLOYEE
"Department for Business, Energy and Industrial Strategy","Department for Business, Energy and Industrial Strategy",20/12/2021 00:00,Air Travel Uk,Business Sectors - Advanced Manufacturing,"Personal Expense, Name Withheld",421053,438.52,Eu Exit Core Beis Staff: No Specific Dexeu Issue Adm-air Travel Uk,,EMPLOYEE
"Department for Business, Energy and Industrial Strategy","Department for Business, Energy and Industrial Strategy",20/12/2021 00:00,Other Travel,Business Sectors - Advanced Manufacturing,"Personal Expense, Name Withheld",421054,2.40,Eu Exit Core Beis Staff: No Specific Dexeu Issue Adm-other Travel,,EMPLOYEE
"Department for Business, Energy and Industrial Strategy","Department for Business, Energy and Industrial Strategy",20/12/2021 00:00,Rail Travel Uk,Business Sectors - Advanced Manufacturing,"Personal Expense, Name Withheld",421054,12.65,Eu Exit Core Beis Staff: No Specific Dexeu Issue Adm-rail Travel Uk,,EMPLOYEE
"Department for Business, Energy and Industrial Strategy","Department for Business, Energy and Industrial Strategy",20/12/2021 00:00,Rail Travel Uk,Business Sectors - Advanced Manufacturing,"Personal Expense, Name Withheld",421054,67.65,Eu Exit Core Beis Staff: No Specific Dexeu Issue Adm-rail Travel Uk,,EMPLOYEE
"Department for Business, Energy and Industrial Strategy","Department for Business, Energy and Industrial Strategy",20/12/2021 00:00,Rail Travel Uk,Business Sectors - Advanced Manufacturing,"Personal Expense, Name Withheld",421128,14.50,Eu Exit Core Beis Staff: No Specific Dexeu Issue Adm-rail Travel Uk,,EMPLOYEE
"Department for Business, Energy and Industrial Strategy","Department for Business, Energy and Industrial Strategy",29/12/2021 00:00,R & D Current Grants To Private Sector - Npish,Business Sectors - Advanced Manufacturing,Aerospace Technology Institute,421683,1395085.00,Aerospace Technology Institute-r & D Current Grants To Private Sector - Npish,MK43 0TR,GRANT
"Department for Business, Energy and Industrial Strategy","Department for Business, Energy and Industrial Strategy",01/12/2021 00:00,Mileage Allowance Uk,Business Sectors - Advanced Manufacturing,"Personal Expense, Name Withheld",417655,75.60,Mf Devolved Admin-mileage Allowance Uk,,EMPLOYEE
"Department for Business, Energy and Industrial Strategy","Department for Business, Energy and Industrial Strategy",01/12/2021 00:00,Mileage Allowance Uk,Business Sectors - Advanced Manufacturing,"Personal Expense, Name Withheld",417655,75.60,Mf Devolved Admin-mileage Allowance Uk,,EMPLOYEE
"Department for Business, Energy and Industrial Strategy","Department for Business, Energy and Industrial Strategy",03/12/2021 00:00,Subsistence Uk,Business Sectors - Advanced Manufacturing,"Personal Expense, Name Withheld",418218,3.80,Mf Devolved Admin-subsistence Uk,,EMPLOYEE
"Department for Business, Energy and Industrial Strategy","Department for Business, Energy and Industrial Strategy",03/12/2021 00:00,Taxi Services Uk,Business Sectors - Advanced Manufacturing,"Personal Expense, Name Withheld",418218,7.00,Mf Devolved Admin-taxi Services Uk,,EMPLOYEE
"Department for Business, Energy and Industrial Strategy","Department for Business, Energy and Industrial Strategy",03/12/2021 00:00,Taxi Services Uk,Business Sectors - Advanced Manufacturing,"Personal Expense, Name Withheld",418218,8.00,Mf Devolved Admin-taxi Services Uk,,EMPLOYEE
"Department for Business, Energy and Industrial Strategy","Department for Business, Energy and Industrial Strategy",03/12/2021 00:00,Taxi Services Uk,Business Sectors - Advanced Manufacturing,"Personal Expense, Name Withheld",418218,12.00,Mf Devolved Admin-taxi Services Uk,,EMPLOYEE
"Department for Business, Energy and Industrial Strategy","Department for Business, Energy and Industrial Strategy",03/12/2021 00:00,Taxi Services Uk,Business Sectors - Advanced Manufacturing,"Personal Expense, Name Withheld",418218,15.00,Mf Devolved Admin-taxi Services Uk,,EMPLOYEE
"Department for Business, Energy and Industrial Strategy","Department for Business, Energy and Industrial Strategy",07/12/2021 00:00,Office-related Expenditure,Business Sectors - Advanced Manufacturing,"Personal Expense, Name Withheld",418672,151.92,Mf Devolved Admin-office-related Expenditure,,EMPLOYEE
"Department for Business, Energy and Industrial Strategy","Department for Business, Energy and Industrial Strategy",09/12/2021 00:00,Rail Travel Uk,Business Sectors - Advanced Manufacturing,"Personal Expense, Name Withheld",419553,13.30,Eu Exit Core Beis Staff: No Specific Dexeu Issue Adm-rail Travel Uk,,EMPLOYEE
"Department for Business, Energy and Industrial Strategy","Department for Business, Energy and Industrial Strategy",09/12/2021 00:00,Taxi Services Uk,Business Sectors - Advanced Manufacturing,"Personal Expense, Name Withheld",419553,20.00,Eu Exit Core Beis Staff: No Specific Dexeu Issue Adm-taxi Services Uk,,EMPLOYEE
"Department for Business, Energy and Industrial Strategy","Department for Business, Energy and Industrial Strategy",13/12/2021 00:00,R & D Current Grants To Private Sector - Npish,Business Sectors - Advanced Manufacturing,Advanced Propulsion Centre Uk Ltd,419893,133333.33,Automotive: Advanced Propulsion Centre-r & D Current Grants To Private Sector - Npish,CV4 7AL,GRANT
"Department for Business, Energy and Industrial Strategy","Department for Business, Energy and Industrial Strategy",13/12/2021 00:00,R & D Salaries - Permanent Staff,Business Sectors - Advanced Manufacturing,Advanced Propulsion Centre Uk Ltd,419895,55657.83,Automotive: Transformation Fund (R&D)-R & D Salaries - Permanent Staff,CV4 7AL,GRANT
"Department for Business, Energy and Industrial Strategy","Department for Business, Energy and Industrial Strategy",22/12/2021 00:00,R & D Current Grants To Private Sector - Npish,Business Sectors - Advanced Manufacturing,Advanced Propulsion Centre Uk Ltd,421461,25353.47,Automotive:Advanced Propulsion Centre-r & D Current Grants To Private Sector - Npish,CV4 7AL,GRANT
"Department for Business, Energy and Industrial Strategy","Department for Business, Energy and Industrial Strategy",22/12/2021 00:00,R & D Current Grants To Private Sector - Npish,Business Sectors - Advanced Manufacturing,Advanced Propulsion Centre Uk Ltd,421462,35314.60,Automotive:Advanced Propulsion Centre-r & D Current Grants To Private Sector - Npish,CV4 7AL,GRANT
"Department for Business, Energy and Industrial Strategy","Department for Business, Energy and Industrial Strategy",08/12/2021 00:00,Taxi Services Uk,Business Sectors - Advanced Manufacturing,"Personal Expense, Name Withheld",419300,10.15,Mf Devolved Admin-taxi Services Uk,,EMPLOYEE
"Department for Business, Energy and Industrial Strategy","Department for Business, Energy and Industrial Strategy",16/12/2021 00:00,R & D Current Grants To Private Sector - Npish,Business Sectors - Advanced Manufacturing,Npl Management Ltd,420719,350550.00,Os - Iscf Cav-enabling Environment-r & D Current Grants To Private Sector - Npish,TW11 0LW,VENDOR
"Department for Business, Energy and Industrial Strategy","Department for Business, Energy and Industrial Strategy",01/12/2021 00:00,Current Grants To Private Sector - Npish,Business Sectors - Advanced Manufacturing,Greater Manchester Combined Authority,417757,369419.00,Made Smarter Nw Pilot-current Grants To Private Sector - Npish,M60 2LA,WGA ONLY
"Department for Business, Energy and Industrial Strategy","Department for Business, Energy and Industrial Strategy",01/12/2021 00:00,Current Grants To Private Sector - Npish,Business Sectors - Advanced Manufacturing,South Yorkshire Mayoral Combined Authority,417761,117150.00,Made Smarter Nw Pilot-current Grants To Private Sector - Npish,S1 2BQ,GRANT
"Department for Business, Energy and Industrial Strategy","Department for Business, Energy and Industrial Strategy",14/12/2021 00:00,Current Grants To Private Sector - Npish,Business Sectors - Advanced Manufacturing,North Of Tyne Combined Authority,420309,19591.00,Made Smarter Nw Pilot-current Grants To Private Sector - Npish,NW27 0QQ,GRANT
"Department for Business, Energy and Industrial Strategy","Department for Business, Energy and Industrial Strategy",15/12/2021 00:00,Stationery,Business Sectors - Advanced Manufacturing,"Personal Expense, Name Withheld",420455,15.00,Eu Exit Core Beis Staff: No Specific Dexeu Issue Adm-stationery,,EMPLOYEE
"Department for Business, Energy and Industrial Strategy","Department for Business, Energy and Industrial Strategy",15/12/2021 00:00,Stationery,Business Sectors - Advanced Manufacturing,"Personal Expense, Name Withheld",420455,23.59,Eu Exit Core Beis Staff: No Specific Dexeu Issue Adm-stationery,,EMPLOYEE
"Department for Business, Energy and Industrial Strategy","Department for Business, Energy and Industrial Strategy",21/12/2021 00:00,Current Grants To Private Sector - Npish,Business Sectors - Advanced Manufacturing,West Midlands Combined Authority,420987,274703.46,Made Smarter Nw Pilot-current Grants To Private Sector - Npish,B19 3SD,GRANT
"Department for Business, Energy and Industrial Strategy","Department for Business, Energy and Industrial Strategy",03/12/2021 00:00,Taxi Services Uk,Business Sectors - Advanced Manufacturing,"Personal Expense, Name Withheld",418231,6.50,Mf Devolved Admin-taxi Services Uk,,EMPLOYEE
"Department for Business, Energy and Industrial Strategy","Department for Business, Energy and Industrial Strategy",03/12/2021 00:00,Taxi Services Uk,Business Sectors - Advanced Manufacturing,"Personal Expense, Name Withheld",418231,7.00,Mf Devolved Admin-taxi Services Uk,,EMPLOYEE
"Department for Business, Energy and Industrial Strategy","Department for Business, Energy and Industrial Strategy",03/12/2021 00:00,Subsistence Uk,Business Sectors - Advanced Manufacturing,"Personal Expense, Name Withheld",418231,15.00,Mf Devolved Admin-subsistence Uk,,EMPLOYEE
"Department for Business, Energy and Industrial Strategy","Department for Business, Energy and Industrial Strategy",03/12/2021 00:00,Rail Travel Uk,Business Sectors - Advanced Manufacturing,"Personal Expense, Name Withheld",418231,81.90,Mf Devolved Admin-rail Travel Uk,,EMPLOYEE
"Department for Business, Energy and Industrial Strategy","Department for Business, Energy and Industrial Strategy",07/12/2021 00:00,Other Travel,Business Sectors - Advanced Manufacturing,"Personal Expense, Name Withheld",418663,8.20,Mf Devolved Admin-other Travel,,EMPLOYEE
"Department for Business, Energy and Industrial Strategy","Department for Business, Energy and Industrial Strategy",07/12/2021 00:00,Subsistence Uk,Business Sectors - Advanced Manufacturing,"Personal Expense, Name Withheld",418663,9.50,Mf Devolved Admin-subsistence Uk,,EMPLOYEE
"Department for Business, Energy and Industrial Strategy","Department for Business, Energy and Industrial Strategy",07/12/2021 00:00,Subsistence Uk,Business Sectors - Advanced Manufacturing,"Personal Expense, Name Withheld",418663,15.00,Mf Devolved Admin-subsistence Uk,,EMPLOYEE
"Department for Business, Energy and Industrial Strategy","Department for Business, Energy and Industrial Strategy",20/12/2021 00:00,Library Services,Business Sectors - Advanced Manufacturing,Retail Economics Ltd,420980,2400.00,Ams:Research-library Services,EC2A 4NE,VENDOR
"Department for Business, Energy and Industrial Strategy","Department for Business, Energy and Industrial Strategy",20/12/2021 00:00,International Subscriptions,Business Sectors - Advanced Manufacturing,Ihs Global Ltd,421003,94050.00,Ams:Research-international Subscriptions,RG12 8FZ,VENDOR
"Department for Business, Energy and Industrial Strategy","Department for Business, Energy and Industrial Strategy",01/12/2021 00:00,Hire Of Agency Staff,Energy And Security - Nuclear Projects And Development Directorate,Alexander Mann Solutions Ltd,417485,3465.30,Mf Devolved Admin-hire Of Agency Staff,EC2N 3AQ,VENDOR
"Department for Business, Energy and Industrial Strategy","Department for Business, Energy and Industrial Strategy",02/12/2021 00:00,Hire Of Interim Managers,Energy And Security - Nuclear Projects And Development Directorate,Alexander Mann Solutions Ltd,417530,2653.92,Mf Devolved Admin-hire Of Interim Managers,EC2N 3AQ,VENDOR
"Department for Business, Energy and Industrial Strategy","Department for Business, Energy and Industrial Strategy",01/12/2021 00:00,Other Professional Services,Energy And Security - Nuclear Projects And Development Directorate,National Nuclear Laboratory Ltd,417747,90000.00,Net Zero Innovation - Nuclear-other Professional Services,WA3 6AE,VENDOR
"Department for Business, Energy and Industrial Strategy","Department for Business, Energy and Industrial Strategy",07/12/2021 00:00,Technical Advice / Services & Support,Energy And Security - Nuclear Projects And Development Directorate,Uk Government Investments (Ukgi),418387,20483.28,Mf Devolved Admin-technical Advice / Services & Support,SW1H 0ET,VENDOR
"Department for Business, Energy and Industrial Strategy","Department for Business, Energy and Industrial Strategy",08/12/2021 00:00,Hire Of Agency Staff,Energy And Security - Nuclear Projects And Development Directorate,Alexander Mann Solutions Ltd,418756,3465.30,Mf Devolved Admin-hire Of Agency Staff,EC2N 3AQ,VENDOR
"Department for Business, Energy and Industrial Strategy","Department for Business, Energy and Industrial Strategy",08/12/2021 00:00,Hire Of Interim Managers,Energy And Security - Nuclear Projects And Development Directorate,Alexander Mann Solutions Ltd,418851,2653.92,Mf Devolved Admin-hire Of Interim Managers,EC2N 3AQ,VENDOR
"Department for Business, Energy and Industrial Strategy","Department for Business, Energy and Industrial Strategy",08/12/2021 00:00,Rail Travel Uk,Energy And Security - Nuclear Projects And Development Directorate,"Personal Expense, Name Withheld",419338,117.85,Mf Devolved Admin-rail Travel Uk,,EMPLOYEE
"Department for Business, Energy and Industrial Strategy","Department for Business, Energy and Industrial Strategy",08/12/2021 00:00,Rail Travel Uk,Energy And Security - Nuclear Projects And Development Directorate,"Personal Expense, Name Withheld",419338,187.95,Mf Devolved Admin-rail Travel Uk,,EMPLOYEE
"Department for Business, Energy and Industrial Strategy","Department for Business, Energy and Industrial Strategy",09/12/2021 00:00,Personnel-related Expenditure,Energy And Security - Nuclear Projects And Development Directorate,National Nuclear Laboratory Ltd,419639,3593.04,Mf Devolved Admin-personnel-related Expenditure,WA3 6AE,VENDOR
"Department for Business, Energy and Industrial Strategy","Department for Business, Energy and Industrial Strategy",13/12/2021 00:00,Stationery,Energy And Security - Nuclear Projects And Development Directorate,"Personal Expense, Name Withheld",419933,5.99,Mf Devolved Admin-stationery,,EMPLOYEE
"Department for Business, Energy and Industrial Strategy","Department for Business, Energy and Industrial Strategy",13/12/2021 00:00,Stationery,Energy And Security - Nuclear Projects And Development Directorate,"Personal Expense, Name Withheld",419933,5.99,Mf Devolved Admin-stationery,,EMPLOYEE
"Department for Business, Energy and Industrial Strategy","Department for Business, Energy and Industrial Strategy",13/12/2021 00:00,Stationery,Energy And Security - Nuclear Projects And Development Directorate,"Personal Expense, Name Withheld",419933,9.42,Mf Devolved Admin-stationery,,EMPLOYEE
"Department for Business, Energy and Industrial Strategy","Department for Business, Energy and Industrial Strategy",13/12/2021 00:00,Stationery,Energy And Security - Nuclear Projects And Development Directorate,"Personal Expense, Name Withheld",419933,19.99,Mf Devolved Admin-stationery,,EMPLOYEE
"Department for Business, Energy and Industrial Strategy","Department for Business, Energy and Industrial Strategy",13/12/2021 00:00,Stationery,Energy And Security - Nuclear Projects And Development Directorate,"Personal Expense, Name Withheld",419933,190.00,Mf Devolved Admin-stationery,,EMPLOYEE
"Department for Business, Energy and Industrial Strategy","Department for Business, Energy and Industrial Strategy",13/12/2021 00:00,Business Rates,Energy And Security - Nuclear Projects And Development Directorate,National Nuclear Laboratory Ltd,419968,106615.97,Nuclear Innovation And Research Office (Niro)-Business Rates,WA3 6AE,VENDOR
"Department for Business, Energy and Industrial Strategy","Department for Business, Energy and Industrial Strategy",15/12/2021 00:00,Hire Of Agency Staff,Energy And Security - Nuclear Projects And Development Directorate,Alexander Mann Solutions Ltd,420052,3465.30,Mf Devolved Admin-hire Of Agency Staff,EC2N 3AQ,VENDOR
"Department for Business, Energy and Industrial Strategy","Department for Business, Energy and Industrial Strategy",14/12/2021 00:00,Taxi Services Uk,Energy And Security - Nuclear Projects And Development Directorate,"Personal Expense, Name Withheld",420166,68.23,Net Zero Costs - Admin-taxi Services Uk,,EMPLOYEE
"Department for Business, Energy and Industrial Strategy","Department for Business, Energy and Industrial Strategy",14/12/2021 00:00,Taxi Services Uk,Energy And Security - Nuclear Projects And Development Directorate,"Personal Expense, Name Withheld",420202,15.40,Mf Devolved Admin-taxi Services Uk,,EMPLOYEE
"Department for Business, Energy and Industrial Strategy","Department for Business, Energy and Industrial Strategy",14/12/2021 00:00,Taxi Services Uk,Energy And Security - Nuclear Projects And Development Directorate,"Personal Expense, Name Withheld",420202,16.50,Mf Devolved Admin-taxi Services Uk,,EMPLOYEE
"Department for Business, Energy and Industrial Strategy","Department for Business, Energy and Industrial Strategy",15/12/2021 00:00,Subsistence Uk,Energy And Security - Nuclear Projects And Development Directorate,"Personal Expense, Name Withheld",420451,2.14,Net Zero Costs - Admin-subsistence Uk,,EMPLOYEE
"Department for Business, Energy and Industrial Strategy","Department for Business, Energy and Industrial Strategy",15/12/2021 00:00,Taxi Services Uk,Energy And Security - Nuclear Projects And Development Directorate,"Personal Expense, Name Withheld",420451,8.54,Net Zero Costs - Admin-taxi Services Uk,,EMPLOYEE
"Department for Business, Energy and Industrial Strategy","Department for Business, Energy and Industrial Strategy",15/12/2021 00:00,Subsistence Uk,Energy And Security - Nuclear Projects And Development Directorate,"Personal Expense, Name Withheld",420451,12.81,Net Zero Costs - Admin-subsistence Uk,,EMPLOYEE
"Department for Business, Energy and Industrial Strategy","Department for Business, Energy and Industrial Strategy",15/12/2021 00:00,Taxi Services Uk,Energy And Security - Nuclear Projects And Development Directorate,"Personal Expense, Name Withheld",420451,13.66,Net Zero Costs - Admin-taxi Services Uk,,EMPLOYEE
"Department for Business, Energy and Industrial Strategy","Department for Business, Energy and Industrial Strategy",15/12/2021 00:00,Taxi Services Uk,Energy And Security - Nuclear Projects And Development Directorate,"Personal Expense, Name Withheld",420451,37.58,Net Zero Costs - Admin-taxi Services Uk,,EMPLOYEE
"Department for Business, Energy and Industrial Strategy","Department for Business, Energy and Industrial Strategy",15/12/2021 00:00,Taxi Services Uk,Energy And Security - Nuclear Projects And Development Directorate,"Personal Expense, Name Withheld",420451,40.91,Net Zero Costs - Admin-taxi Services Uk,,EMPLOYEE
"Department for Business, Energy and Industrial Strategy","Department for Business, Energy and Industrial Strategy",15/12/2021 00:00,Taxi Services Uk,Energy And Security - Nuclear Projects And Development Directorate,"Personal Expense, Name Withheld",420451,49.00,Net Zero Costs - Admin-taxi Services Uk,,EMPLOYEE
"Department for Business, Energy and Industrial Strategy","Department for Business, Energy and Industrial Strategy",15/12/2021 00:00,Subsistence Uk,Energy And Security - Nuclear Projects And Development Directorate,"Personal Expense, Name Withheld",420451,51.24,Net Zero Costs - Admin-subsistence Uk,,EMPLOYEE
"Department for Business, Energy and Industrial Strategy","Department for Business, Energy and Industrial Strategy",15/12/2021 00:00,Taxi Services Uk,Energy And Security - Nuclear Projects And Development Directorate,"Personal Expense, Name Withheld",420451,51.80,Net Zero Costs - Admin-taxi Services Uk,,EMPLOYEE
"Department for Business, Energy and Industrial Strategy","Department for Business, Energy and Industrial Strategy",17/12/2021 00:00,Technical Advice / Services & Support,Energy And Security - Nuclear Projects And Development Directorate,Faulknerbrowns Llp,420574,11996.40,Mf Devolved Admin-technical Advice / Services & Support,NE12 6QW,VENDOR
"Department for Business, Energy and Industrial Strategy","Department for Business, Energy and Industrial Strategy",16/12/2021 00:00,Subsistence Uk,Energy And Security - Nuclear Projects And Development Directorate,"Personal Expense, Name Withheld",420591,128.70,Mf Devolved Admin-subsistence Uk,,
"Department for Business, Energy and Industrial Strategy","Department for Business, Energy and Industrial Strategy",17/12/2021 00:00,Capital Grants (Central Government),Energy And Security - Nuclear Projects And Development Directorate,Faulknerbrowns Llp,420597,9326.40,Net Zero Innovation - Nuclear-capital Grants (Central Government),NE12 6QW,VENDOR
"Department for Business, Energy and Industrial Strategy","Department for Business, Energy and Industrial Strategy",16/12/2021 00:00,Taxi Services Uk,Energy And Security - Nuclear Projects And Development Directorate,"Personal Expense, Name Withheld",420663,7.00,Net Zero Costs - Admin-taxi Services Uk,,EMPLOYEE
"Department for Business, Energy and Industrial Strategy","Department for Business, Energy and Industrial Strategy",16/12/2021 00:00,Other Travel,Energy And Security - Nuclear Projects And Development Directorate,"Personal Expense, Name Withheld",420663,8.50,Net Zero Costs - Admin-other Travel,,EMPLOYEE
"Department for Business, Energy and Industrial Strategy","Department for Business, Energy and Industrial Strategy",16/12/2021 00:00,Stationery,Energy And Security - Nuclear Projects And Development Directorate,"Personal Expense, Name Withheld",420663,9.99,Net Zero Costs - Admin-stationery,,EMPLOYEE
"Department for Business, Energy and Industrial Strategy","Department for Business, Energy and Industrial Strategy",16/12/2021 00:00,Hospitality - Uk,Energy And Security - Nuclear Projects And Development Directorate,"Personal Expense, Name Withheld",420663,12.38,Net Zero Costs - Admin-hospitality - Uk,,EMPLOYEE
"Department for Business, Energy and Industrial Strategy","Department for Business, Energy and Industrial Strategy",16/12/2021 00:00,Taxi Services Uk,Energy And Security - Nuclear Projects And Development Directorate,"Personal Expense, Name Withheld",420663,18.00,Net Zero Costs - Admin-taxi Services Uk,,EMPLOYEE
"Department for Business, Energy and Industrial Strategy","Department for Business, Energy and Industrial Strategy",16/12/2021 00:00,Other Travel,Energy And Security - Nuclear Projects And Development Directorate,"Personal Expense, Name Withheld",420664,7.48,Net Zero Costs - Admin-other Travel,,EMPLOYEE
"Department for Business, Energy and Industrial Strategy","Department for Business, Energy and Industrial Strategy",16/12/2021 00:00,Other Travel,Energy And Security - Nuclear Projects And Development Directorate,"Personal Expense, Name Withheld",420664,8.15,Net Zero Costs - Admin-other Travel,,EMPLOYEE
"Department for Business, Energy and Industrial Strategy","Department for Business, Energy and Industrial Strategy",16/12/2021 00:00,Taxi Services Uk,Energy And Security - Nuclear Projects And Development Directorate,"Personal Expense, Name Withheld",420664,11.00,Net Zero Costs - Admin-taxi Services Uk,,EMPLOYEE
"Department for Business, Energy and Industrial Strategy","Department for Business, Energy and Industrial Strategy",16/12/2021 00:00,Taxi Services Uk,Energy And Security - Nuclear Projects And Development Directorate,"Personal Expense, Name Withheld",420664,13.00,Net Zero Costs - Admin-taxi Services Uk,,EMPLOYEE
"Department for Business, Energy and Industrial Strategy","Department for Business, Energy and Industrial Strategy",16/12/2021 00:00,Taxi Services Uk,Energy And Security - Nuclear Projects And Development Directorate,"Personal Expense, Name Withheld",420664,13.00,Net Zero Costs - Admin-taxi Services Uk,,EMPLOYEE
"Department for Business, Energy and Industrial Strategy","Department for Business, Energy and Industrial Strategy",16/12/2021 00:00,Taxi Services Uk,Energy And Security - Nuclear Projects And Development Directorate,"Personal Expense, Name Withheld",420664,15.00,Net Zero Costs - Admin-taxi Services Uk,,EMPLOYEE
"Department for Business, Energy and Industrial Strategy","Department for Business, Energy and Industrial Strategy",24/12/2021 00:00,Hire Of Interim Managers,Energy And Security - Nuclear Projects And Development Directorate,Alexander Mann Solutions Ltd,420973,2653.92,Mf Devolved Admin-hire Of Interim Managers,EC2N 3AQ,VENDOR
"Department for Business, Energy and Industrial Strategy","Department for Business, Energy and Industrial Strategy",20/12/2021 00:00,Hotel & Accommodation Uk,Energy And Security - Nuclear Projects And Development Directorate,"Personal Expense, Name Withheld",421076,139.00,Mf Devolved Admin-hotel & Accommodation Uk,,EMPLOYEE
"Department for Business, Energy and Industrial Strategy","Department for Business, Energy and Industrial Strategy",24/12/2021 00:00,Hire Of Interim Managers,Energy And Security - Nuclear Projects And Development Directorate,Alexander Mann Solutions Ltd,421172,2123.14,Mf Devolved Admin-hire Of Interim Managers,EC2N 3AQ,VENDOR
"Department for Business, Energy and Industrial Strategy","Department for Business, Energy and Industrial Strategy",22/12/2021 00:00,Capital Grants To Central Government,Energy And Security - Nuclear Projects And Development Directorate,National Nuclear Laboratory Ltd,421510,1653800.00,Net Zero Innovation - Nuclear-capital Grants To Central Government,WA3 6AE,VENDOR
"Department for Business, Energy and Industrial Strategy","Department for Business, Energy and Industrial Strategy",23/12/2021 00:00,Technical Advice / Services & Support,Energy And Security - Nuclear Projects And Development Directorate,Environment Agency,421692,137224.85,Small Modular Reactors - Consultancy And Legal Advice-technical Advice / Services & Support,BS1 5AH,WGA ONLY
"Department for Business, Energy and Industrial Strategy","Department for Business, Energy and Industrial Strategy",23/12/2021 00:00,R & D Research And Development Expenditure,Energy And Security - Nuclear Projects And Development Directorate,National Nuclear Laboratory Ltd,421693,174999.60,Net Zero Innovation - Nuclear-r & D Research And Development Expenditure,WA3 6AE,VENDOR
"Department for Business, Energy and Industrial Strategy","Department for Business, Energy and Industrial Strategy",23/12/2021 00:00,R & D Research And Development Expenditure,Energy And Security - Nuclear Projects And Development Directorate,National Nuclear Laboratory Ltd,421694,60000.00,Net Zero Innovation - Nuclear-r & D Research And Development Expenditure,WA3 6AE,VENDOR
"Department for Business, Energy and Industrial Strategy","Department for Business, Energy and Industrial Strategy",24/12/2021 00:00,Other Professional Services,Energy And Security - Nuclear Projects And Development Directorate,Office For Nuclear Regulation,421863,138519.19,Small Modular Reactors - Consultancy And Legal Advice-other Professional Services,NP10 8FZ,VENDOR
"Department for Business, Energy and Industrial Strategy","Department for Business, Energy and Industrial Strategy",29/12/2021 00:00,Hire Of Interim Managers,Energy And Security - Nuclear Projects And Development Directorate,Alexander Mann Solutions Ltd,422051,2653.92,Mf Devolved Admin-hire Of Interim Managers,EC2N 3AQ,VENDOR
"Department for Business, Energy and Industrial Strategy","Department for Business, Energy and Industrial Strategy",15/12/2021 00:00,R & D Outsourced Other,"Science, Innovation And Growth - Business Growth",Bdrc Continental Ltd,420060,9990.00,Mf Devolved Admin-r & D Outsourced Other,N1 9LL,VENDOR
"Department for Business, Energy and Industrial Strategy","Department for Business, Energy and Industrial Strategy",29/12/2021 00:00,Economic Consultancy & Research,"Science, Innovation And Growth - Business Growth",Bdrc Continental Ltd,421880,23550.00,Mf Devolved Admin-economic Consultancy & Research,N1 9LL,VENDOR
"Department for Business, Energy and Industrial Strategy","Department for Business, Energy and Industrial Strategy",29/12/2021 00:00,Economic Consultancy & Research,"Science, Innovation And Growth - Business Growth",Bdrc Continental Ltd,421882,23550.00,Mf Devolved Admin-economic Consultancy & Research,N1 9LL,VENDOR
"Department for Business, Energy and Industrial Strategy","Department for Business, Energy and Industrial Strategy",31/12/2021 00:00,Utilisation Of Provisions - British Energy,Energy And Security - British Energy Historic Payments,Nuclear Decommissioning Authority,421414,11151960.78,British Energy Historic Liabilities Funding-utilisation Of Provisions - British Energy,CA24 3HW,VENDOR
"Department for Business, Energy and Industrial Strategy","Department for Business, Energy and Industrial Strategy",20/12/2021 00:00,Outsourced Programme Management,Market Frameworks - Business Frameworks,Companies House,418451,512217.23,Ch: Late Filing Penalties-outsourced Programme Management,CF14 3UZ,WGA ONLY
"Department for Business, Energy and Industrial Strategy","Department for Business, Energy and Industrial Strategy",15/12/2021 00:00,Office-related Expenditure,Market Frameworks - Business Frameworks,"Personal Expense, Name Withheld",420482,1.50,Mf Devolved Admin-office-related Expenditure,,EMPLOYEE
"Department for Business, Energy and Industrial Strategy","Department for Business, Energy and Industrial Strategy",15/12/2021 00:00,Office-related Expenditure,Market Frameworks - Business Frameworks,"Personal Expense, Name Withheld",420482,1.50,Mf Devolved Admin-office-related Expenditure,,EMPLOYEE
"Department for Business, Energy and Industrial Strategy","Department for Business, Energy and Industrial Strategy",15/12/2021 00:00,Office-related Expenditure,Market Frameworks - Business Frameworks,"Personal Expense, Name Withheld",420482,36.00,Mf Devolved Admin-office-related Expenditure,,EMPLOYEE
"Department for Business, Energy and Industrial Strategy","Department for Business, Energy and Industrial Strategy",16/12/2021 00:00,Professional Subscriptions,Market Frameworks - Business Frameworks,"Personal Expense, Name Withheld",420653,400.00,Mf Devolved Admin-professional Subscriptions,,EMPLOYEE
"Department for Business, Energy and Industrial Strategy","Department for Business, Energy and Industrial Strategy",23/12/2021 00:00,Independent Experts,Market Frameworks - Business Frameworks,Bdo Llp,421701,14670.00,Business Environment-independent Experts,W1U 3LL,VENDOR
"Department for Business, Energy and Industrial Strategy","Department for Business, Energy and Industrial Strategy",23/12/2021 00:00,Independent Experts,Market Frameworks - Business Frameworks,Bdo Llp,421704,14669.99,Business Environment-independent Experts,W1U 3LL,VENDOR
"Department for Business, Energy and Industrial Strategy","Department for Business, Energy and Industrial Strategy",23/12/2021 00:00,Independent Experts,Market Frameworks - Business Frameworks,Bdo Llp,421704,60439.76,Business Environment-independent Experts,W1U 3LL,VENDOR
"Department for Business, Energy and Industrial Strategy","Department for Business, Energy and Industrial Strategy",15/12/2021 00:00,Office-related Expenditure,Market Frameworks - Business Frameworks,"Personal Expense, Name Withheld",420453,24.24,Mf Devolved Admin-office-related Expenditure,,EMPLOYEE
"Department for Business, Energy and Industrial Strategy","Department for Business, Energy and Industrial Strategy",06/12/2021 00:00,Exp - Miscellaneous Expenditure - Iexpenses,Market Frameworks - Business Frameworks,"Personal Expense, Name Withheld",418213,188.80,Default-exp - Miscellaneous Expenditure - Iexpenses,,EMPLOYEE
"Department for Business, Energy and Industrial Strategy","Department for Business, Energy and Industrial Strategy",06/12/2021 00:00,Office-related Expenditure,Market Frameworks - Business Frameworks,"Personal Expense, Name Withheld",418214,11.98,Mf Devolved Admin-office-related Expenditure,,EMPLOYEE
"Department for Business, Energy and Industrial Strategy","Department for Business, Energy and Industrial Strategy",06/12/2021 00:00,Office-related Expenditure,Market Frameworks - Business Frameworks,"Personal Expense, Name Withheld",418214,16.99,Mf Devolved Admin-office-related Expenditure,,EMPLOYEE
"Department for Business, Energy and Industrial Strategy","Department for Business, Energy and Industrial Strategy",06/12/2021 00:00,Office-related Expenditure,Market Frameworks - Business Frameworks,"Personal Expense, Name Withheld",418397,15.28,Mf Devolved Admin-office-related Expenditure,,EMPLOYEE
"Department for Business, Energy and Industrial Strategy","Department for Business, Energy and Industrial Strategy",08/12/2021 00:00,Npf - Agencies - General Fund,Market Frameworks - Business Frameworks,The Insolvency Service,418471,5550333.35,Insolvency Service Nb-npf - Agencies - General Fund,WC1B 3SS,WGA ONLY
"Department for Business, Energy and Industrial Strategy","Department for Business, Energy and Industrial Strategy",13/12/2021 00:00,Current Grants To Local Government,"Science, Innovation And Growth - Business Growth",Buckinghamshire Council,399782,5659.83,Peer Networks-current Grants To Local Government,HP20 1UD,WGA ONLY
"Department for Business, Energy and Industrial Strategy","Department for Business, Energy and Industrial Strategy",03/12/2021 00:00,Marketing And Media,"Science, Innovation And Growth - Business Growth",Omnicom Media Group Uk Ltd T/A Manning Gottlieb Omd,416860,25.99,Help To Grow: Management-marketing And Media,SE1 0SW,VENDOR
"Department for Business, Energy and Industrial Strategy","Department for Business, Energy and Industrial Strategy",03/12/2021 00:00,Marketing And Media,"Science, Innovation And Growth - Business Growth",Omnicom Media Group Uk Ltd T/A Manning Gottlieb Omd,416860,26266.66,Help To Grow: Management-marketing And Media,SE1 0SW,VENDOR
"Department for Business, Energy and Industrial Strategy","Department for Business, Energy and Industrial Strategy",06/12/2021 00:00,Outsourced Programme Management,"Science, Innovation And Growth - Business Growth",Kantar Uk Ltd,417625,30500.00,Help To Grow: Management-outsourced Programme Management,W5 1UA,VENDOR
"Department for Business, Energy and Industrial Strategy","Department for Business, Energy and Industrial Strategy",03/12/2021 00:00,Marketing And Media,"Science, Innovation And Growth - Business Growth",Omnicom Media Group Uk Ltd T/A Manning Gottlieb Omd,417765,8.74,Help To Grow: Management-marketing And Media,SE1 0SW,VENDOR
"Department for Business, Energy and Industrial Strategy","Department for Business, Energy and Industrial Strategy",03/12/2021 00:00,Marketing And Media,"Science, Innovation And Growth - Business Growth",Omnicom Media Group Uk Ltd T/A Manning Gottlieb Omd,417765,8855.34,Help To Grow: Management-marketing And Media,SE1 0SW,VENDOR
"Department for Business, Energy and Industrial Strategy","Department for Business, Energy and Industrial Strategy",03/12/2021 00:00,Marketing And Media,"Science, Innovation And Growth - Business Growth",Omnicom Media Group Uk Ltd T/A Manning Gottlieb Omd,417771,30.56,Help To Grow: Management-marketing And Media,SE1 0SW,VENDOR
"Department for Business, Energy and Industrial Strategy","Department for Business, Energy and Industrial Strategy",03/12/2021 00:00,Marketing And Media,"Science, Innovation And Growth - Business Growth",Omnicom Media Group Uk Ltd T/A Manning Gottlieb Omd,417771,30868.41,Help To Grow: Management-marketing And Media,SE1 0SW,VENDOR
"Department for Business, Energy and Industrial Strategy","Department for Business, Energy and Industrial Strategy",07/12/2021 00:00,Current Grants To Local Government,"Science, Innovation And Growth - Business Growth",Buckinghamshire Council,418595,8211.02,Peer Networks-current Grants To Local Government,HP20 1UD,WGA ONLY
"Department for Business, Energy and Industrial Strategy","Department for Business, Energy and Industrial Strategy",07/12/2021 00:00,Current Grants To Local Government,"Science, Innovation And Growth - Business Growth",Cambridgeshire And Peterborough Combined Authority,418596,148000.00,Peer Networks-current Grants To Local Government,CB7  4LS,GRANT
"Department for Business, Energy and Industrial Strategy","Department for Business, Energy and Industrial Strategy",10/12/2021 00:00,Outsourced Programme Management,"Science, Innovation And Growth - Business Growth",Wavehill Ltd,418598,21927.45,Peer Networks-outsourced Programme Management,SA46 0DB,VENDOR
"Department for Business, Energy and Industrial Strategy","Department for Business, Energy and Industrial Strategy",07/12/2021 00:00,Current Grants To Local Government,"Science, Innovation And Growth - Business Growth",Walsall Metropolitan Borough Council,418599,20655.90,Peer Networks-current Grants To Local Government,WS1 1TP,GRANT
"Department for Business, Energy and Industrial Strategy","Department for Business, Energy and Industrial Strategy",07/12/2021 00:00,Current Grants To Local Government,"Science, Innovation And Growth - Business Growth",Marches Lep,418600,3449.69,Peer Networks-current Grants To Local Government,SY1 3GA,GRANT
"Department for Business, Energy and Industrial Strategy","Department for Business, Energy and Industrial Strategy",13/12/2021 00:00,Current Grants To Local Government,"Science, Innovation And Growth - Business Growth",Greater Manchester Combined Authority,419875,32986.19,Peer Networks-current Grants To Local Government,M1 6EU,WGA ONLY
"Department for Business, Energy and Industrial Strategy","Department for Business, Energy and Industrial Strategy",13/12/2021 00:00,Current Grants To Local Government,"Science, Innovation And Growth - Business Growth",Dorset Council,419876,55139.92,Peer Networks-current Grants To Local Government,DT1 1XJ,VENDOR
"Department for Business, Energy and Industrial Strategy","Department for Business, Energy and Industrial Strategy",15/12/2021 00:00,Current Grants To Local Government,"Science, Innovation And Growth - Business Growth",Greater London Authority,420413,90917.06,Peer Networks-current Grants To Local Government,SE1 2AA,WGA ONLY
"Department for Business, Energy and Industrial Strategy","Department for Business, Energy and Industrial Strategy",15/12/2021 00:00,Current Grants To Local Government,"Science, Innovation And Growth - Business Growth",Birmingham City Council,420414,30288.08,Peer Networks-current Grants To Local Government,B7 4BL,WGA ONLY
"Department for Business, Energy and Industrial Strategy","Department for Business, Energy and Industrial Strategy",23/12/2021 00:00,Telecoms Equipment,"Science, Innovation And Growth - Business Growth",Language Line Ltd T/A Language Line Solutions,421753,138.62,Business Support Helpline-telecoms Equipment,E14 5NR,VENDOR
"Department for Business, Energy and Industrial Strategy","Department for Business, Energy and Industrial Strategy",23/12/2021 00:00,Telecoms Equipment,"Science, Innovation And Growth - Business Growth",Language Line Ltd T/A Language Line Solutions,421754,74.78,Business Support Helpline-telecoms Equipment,E14 5NR,VENDOR
"Department for Business, Energy and Industrial Strategy","Department for Business, Energy and Industrial Strategy",23/12/2021 00:00,Telecoms Equipment,"Science, Innovation And Growth - Business Growth",Language Line Ltd T/A Language Line Solutions,421755,20.98,Business Support Helpline-telecoms Equipment,E14 5NR,VENDOR
"Department for Business, Energy and Industrial Strategy","Department for Business, Energy and Industrial Strategy",23/12/2021 00:00,Current Grants To Local Government,"Science, Innovation And Growth - Business Growth",Buckinghamshire Council,421763,4311.99,Peer Networks-current Grants To Local Government,HP20 1UD,WGA ONLY
"Department for Business, Energy and Industrial Strategy","Department for Business, Energy and Industrial Strategy",23/12/2021 00:00,Current Grants To Local Government,"Science, Innovation And Growth - Business Growth",Lancashire County Council,421764,4750.00,Peer Networks-current Grants To Local Government,PR1 8XJ,WGA ONLY
"Department for Business, Energy and Industrial Strategy","Department for Business, Energy and Industrial Strategy",29/12/2021 00:00,Business Management Advice,"Science, Innovation And Growth - Business Growth",Umi Commercial Ltd,422166,157583.93,Business Support Helpline-business Management Advice,SR7 7TT,VENDOR
"Department for Business, Energy and Industrial Strategy","Department for Business, Energy and Industrial Strategy",30/12/2021 00:00,Current Grants To Local Government,"Science, Innovation And Growth - Business Growth",Essex County Council,422279,28216.47,Peer Networks-current Grants To Local Government,CM1 1LX,WGA ONLY
"Department for Business, Energy and Industrial Strategy","Department for Business, Energy and Industrial Strategy",30/12/2021 00:00,Current Grants To Local Government,"Science, Innovation And Growth - Business Growth",Walsall Metropolitan Borough Council,422280,22917.95,Peer Networks-current Grants To Local Government,WS1 1TP,GRANT
"Department for Business, Energy and Industrial Strategy","Department for Business, Energy and Industrial Strategy",21/12/2021 00:00,Technical Advice / Services & Support,"Science, Innovation And Growth - Business Growth",Ixc Uk Ltd,421394,4674.00,Db: Queens Award-technical Advice / Services & Support,LN6 3QR,VENDOR
"Department for Business, Energy and Industrial Strategy","Department for Business, Energy and Industrial Strategy",21/12/2021 00:00,Technical Advice / Services & Support,"Science, Innovation And Growth - Business Growth",Ixc Uk Ltd,421395,16090.08,Db: Queens Award-technical Advice / Services & Support,LN6 3QR,VENDOR
"Department for Business, Energy and Industrial Strategy","Department for Business, Energy and Industrial Strategy",22/12/2021 00:00,Other Travel,"Science, Innovation And Growth - Business Growth","Personal Expense, Name Withheld",421592,20.00,Db: Queens Award-other Travel,,EMPLOYEE
"Department for Business, Energy and Industrial Strategy","Department for Business, Energy and Industrial Strategy",22/12/2021 00:00,Conferences,"Science, Innovation And Growth - Business Growth","Personal Expense, Name Withheld",421592,63.00,Db: Queens Award-conferences,,EMPLOYEE
"Department for Business, Energy and Industrial Strategy","Department for Business, Energy and Industrial Strategy",22/12/2021 00:00,Conferences,"Science, Innovation And Growth - Business Growth","Personal Expense, Name Withheld",421592,63.00,Db: Queens Award-conferences,,EMPLOYEE
"Department for Business, Energy and Industrial Strategy","Department for Business, Energy and Industrial Strategy",13/12/2021 00:00,Hire Of Agency Staff,"Science, Innovation And Growth - Business Growth",Alexander Mann Solutions Ltd,416046,2268.19,Mf Devolved Admin-hire Of Agency Staff,EC2N 3AQ,VENDOR
"Department for Business, Energy and Industrial Strategy","Department for Business, Energy and Industrial Strategy",17/12/2021 00:00,Hire Of Agency Staff,"Science, Innovation And Growth - Business Growth",Alexander Mann Solutions Ltd,416047,2537.82,Mf Devolved Admin-hire Of Agency Staff,EC2N 3AQ,VENDOR
"Department for Business, Energy and Industrial Strategy","Department for Business, Energy and Industrial Strategy",15/12/2021 00:00,Hire Of Agency Staff,"Science, Innovation And Growth - Business Growth",Alexander Mann Solutions Ltd,416049,1673.50,Mf Devolved Admin-hire Of Agency Staff,EC2N 3AQ,VENDOR
"Department for Business, Energy and Industrial Strategy","Department for Business, Energy and Industrial Strategy",07/12/2021 00:00,Procurement Consultancy,"Science, Innovation And Growth - Business Growth",Alexander Mann Solutions Ltd,417561,1847.81,Mf Devolved Admin-procurement Consultancy,EC2N 3AQ,VENDOR
"Department for Business, Energy and Industrial Strategy","Department for Business, Energy and Industrial Strategy",22/12/2021 00:00,Hire Of Agency Staff,"Science, Innovation And Growth - Business Growth",Alexander Mann Solutions Ltd,417579,5498.62,Mf Devolved Admin-hire Of Agency Staff,EC2N 3AQ,VENDOR
"Department for Business, Energy and Industrial Strategy","Department for Business, Energy and Industrial Strategy",17/12/2021 00:00,Hire Of Agency Staff,"Science, Innovation And Growth - Business Growth",Alexander Mann Solutions Ltd,417580,2574.60,Mf Devolved Admin-hire Of Agency Staff,EC2N 3AQ,VENDOR
"Department for Business, Energy and Industrial Strategy","Department for Business, Energy and Industrial Strategy",15/12/2021 00:00,Hire Of Agency Staff,"Science, Innovation And Growth - Business Growth",Alexander Mann Solutions Ltd,417585,2261.98,Mf Devolved Admin-hire Of Agency Staff,EC2N 3AQ,VENDOR
"Department for Business, Energy and Industrial Strategy","Department for Business, Energy and Industrial Strategy",06/12/2021 00:00,Ppm Consultancy,"Science, Innovation And Growth - Business Growth",Cabinet Office,417730,5834.76,Help To Grow: Digital-ppm Consultancy,NP10 8FZ,WGA ONLY
"Department for Business, Energy and Industrial Strategy","Department for Business, Energy and Industrial Strategy",07/12/2021 00:00,Hire Of Agency Staff,"Science, Innovation And Growth - Business Growth",Allen Lane Ltd,417862,2798.40,Mf Devolved Admin-hire Of Agency Staff,SW1Y 6RJ,VENDOR
"Department for Business, Energy and Industrial Strategy","Department for Business, Energy and Industrial Strategy",06/12/2021 00:00,It Software Licences And Software Maintenance,"Science, Innovation And Growth - Business Growth",Cabinet Office,418284,300.00,Mf Devolved Admin-it Software Licences And Software Maintenance,NP10 8FZ,WGA ONLY
"Department for Business, Energy and Industrial Strategy","Department for Business, Energy and Industrial Strategy",06/12/2021 00:00,Office-related Expenditure,"Science, Innovation And Growth - Business Growth","Personal Expense, Name Withheld",418400,50.00,Mf Devolved Admin-office-related Expenditure,,EMPLOYEE
"Department for Business, Energy and Industrial Strategy","Department for Business, Energy and Industrial Strategy",06/12/2021 00:00,Office-related Expenditure,"Science, Innovation And Growth - Business Growth","Personal Expense, Name Withheld",418400,115.00,Mf Devolved Admin-office-related Expenditure,,EMPLOYEE
"Department for Business, Energy and Industrial Strategy","Department for Business, Energy and Industrial Strategy",13/12/2021 00:00,Hire Of Agency Staff,"Science, Innovation And Growth - Business Growth",Alexander Mann Solutions Ltd,418875,5103.43,Mf Devolved Admin-hire Of Agency Staff,EC2N 3AQ,VENDOR
"Department for Business, Energy and Industrial Strategy","Department for Business, Energy and Industrial Strategy",22/12/2021 00:00,Hire Of Agency Staff,"Science, Innovation And Growth - Business Growth",Alexander Mann Solutions Ltd,418878,2648.16,Mf Devolved Admin-hire Of Agency Staff,EC2N 3AQ,VENDOR
"Department for Business, Energy and Industrial Strategy","Department for Business, Energy and Industrial Strategy",17/12/2021 00:00,Hire Of Agency Staff,"Science, Innovation And Growth - Business Growth",Alexander Mann Solutions Ltd,418881,2353.92,Mf Devolved Admin-hire Of Agency Staff,EC2N 3AQ,VENDOR
"Department for Business, Energy and Industrial Strategy","Department for Business, Energy and Industrial Strategy",15/12/2021 00:00,Hire Of Agency Staff,"Science, Innovation And Growth - Business Growth",Alexander Mann Solutions Ltd,418883,2868.84,Mf Devolved Admin-hire Of Agency Staff,EC2N 3AQ,VENDOR
"Department for Business, Energy and Industrial Strategy","Department for Business, Energy and Industrial Strategy",13/12/2021 00:00,Procurement Consultancy,"Science, Innovation And Growth - Business Growth",Deloitte Llp,419214,9143.95,Mf Devolved Admin-procurement Consultancy,MK9 1FD,VENDOR
"Department for Business, Energy and Industrial Strategy","Department for Business, Energy and Industrial Strategy",13/12/2021 00:00,Procurement Consultancy,"Science, Innovation And Growth - Business Growth",Deloitte Llp,419214,246115.05,Mf Devolved Admin-procurement Consultancy,MK9 1FD,VENDOR
"Department for Business, Energy and Industrial Strategy","Department for Business, Energy and Industrial Strategy",08/12/2021 00:00,Other It Consultancy,"Science, Innovation And Growth - Business Growth",Allen Lane Ltd,419233,7140.00,Help To Grow: Digital-other It Consultancy,SW1Y 5JH,VENDOR
"Department for Business, Energy and Industrial Strategy","Department for Business, Energy and Industrial Strategy",09/12/2021 00:00,Hire Of Agency Staff,"Science, Innovation And Growth - Business Growth",Allen Lane Ltd,419490,5037.12,Mf Devolved Admin-hire Of Agency Staff,BN11 2BW,VENDOR
"Department for Business, Energy and Industrial Strategy","Department for Business, Energy and Industrial Strategy",09/12/2021 00:00,Other It Consultancy,"Science, Innovation And Growth - Business Growth",Allen Lane Ltd,419500,7140.00,Help To Grow: Digital-other It Consultancy,SW1Y 5JH,VENDOR
"Department for Business, Energy and Industrial Strategy","Department for Business, Energy and Industrial Strategy",09/12/2021 00:00,Legal Services And Advice Agency,"Science, Innovation And Growth - Business Growth",Tlt Llp,419661,27792.91,Help To Grow: Digital-legal Services And Advice Agency,BS1 6TP,VENDOR
"Department for Business, Energy and Industrial Strategy","Department for Business, Energy and Industrial Strategy",10/12/2021 00:00,Procurement Consultancy,"Science, Innovation And Growth - Business Growth",Matt Hamnett & Associates Ltd,419853,128694.90,Help To Grow: Digital-procurement Consultancy,N5 1AZ,VENDOR
"Department for Business, Energy and Industrial Strategy","Department for Business, Energy and Industrial Strategy",15/12/2021 00:00,Hire Of Agency Staff,"Science, Innovation And Growth - Business Growth",Alexander Mann Solutions Ltd,420072,2835.24,Mf Devolved Admin-hire Of Agency Staff,EC2N 3AQ,VENDOR
"Department for Business, Energy and Industrial Strategy","Department for Business, Energy and Industrial Strategy",22/12/2021 00:00,Hire Of Agency Staff,"Science, Innovation And Growth - Business Growth",Alexander Mann Solutions Ltd,420074,2648.16,Mf Devolved Admin-hire Of Agency Staff,EC2N 3AQ,VENDOR
"Department for Business, Energy and Industrial Strategy","Department for Business, Energy and Industrial Strategy",17/12/2021 00:00,Hire Of Agency Staff,"Science, Innovation And Growth - Business Growth",Alexander Mann Solutions Ltd,420075,2574.60,Mf Devolved Admin-hire Of Agency Staff,EC2N 3AQ,VENDOR
"Department for Business, Energy and Industrial Strategy","Department for Business, Energy and Industrial Strategy",15/12/2021 00:00,Hire Of Agency Staff,"Science, Innovation And Growth - Business Growth",Alexander Mann Solutions Ltd,420076,2832.06,Mf Devolved Admin-hire Of Agency Staff,EC2N 3AQ,VENDOR
"Department for Business, Energy and Industrial Strategy","Department for Business, Energy and Industrial Strategy",15/12/2021 00:00,Hire Of Agency Staff,"Science, Innovation And Growth - Business Growth",Alexander Mann Solutions Ltd,420099,1134.10,Help To Grow: Digital-hire Of Agency Staff,EC2N 3AQ,VENDOR
"Department for Business, Energy and Industrial Strategy","Department for Business, Energy and Industrial Strategy",15/12/2021 00:00,Consultancy Expenditure,"Science, Innovation And Growth - Business Growth",Alexander Mann Solutions Ltd,420104,3326.00,Help To Grow: Digital-consultancy Expenditure,EC2N 3AQ,VENDOR
"Department for Business, Energy and Industrial Strategy","Department for Business, Energy and Industrial Strategy",16/12/2021 00:00,Hire Of Agency Staff,"Science, Innovation And Growth - Business Growth",Allen Lane Ltd,420622,2798.40,Mf Devolved Admin-hire Of Agency Staff,SW1Y 5JH,VENDOR
"Department for Business, Energy and Industrial Strategy","Department for Business, Energy and Industrial Strategy",16/12/2021 00:00,Other It Consultancy,"Science, Innovation And Growth - Business Growth",Allen Lane Ltd,420643,6120.00,Help To Grow: Digital-other It Consultancy,SW1Y 6RJ,VENDOR
"Department for Business, Energy and Industrial Strategy","Department for Business, Energy and Industrial Strategy",17/12/2021 00:00,Office-related Expenditure,"Science, Innovation And Growth - Business Growth","Personal Expense, Name Withheld",420877,16.99,Mf Devolved Admin-office-related Expenditure,,EMPLOYEE
"Department for Business, Energy and Industrial Strategy","Department for Business, Energy and Industrial Strategy",17/12/2021 00:00,Office-related Expenditure,"Science, Innovation And Growth - Business Growth","Personal Expense, Name Withheld",420877,96.99,Mf Devolved Admin-office-related Expenditure,,EMPLOYEE
"Department for Business, Energy and Industrial Strategy","Department for Business, Energy and Industrial Strategy",17/12/2021 00:00,Office-related Expenditure,"Science, Innovation And Growth - Business Growth","Personal Expense, Name Withheld",420877,119.99,Mf Devolved Admin-office-related Expenditure,,EMPLOYEE
"Department for Business, Energy and Industrial Strategy","Department for Business, Energy and Industrial Strategy",22/12/2021 00:00,Hire Of Agency Staff,"Science, Innovation And Growth - Business Growth",Alexander Mann Solutions Ltd,421159,2574.60,Mf Devolved Admin-hire Of Agency Staff,EC2N 3AQ,VENDOR
"Department for Business, Energy and Industrial Strategy","Department for Business, Energy and Industrial Strategy",22/12/2021 00:00,Hire Of Agency Staff,"Science, Innovation And Growth - Business Growth",Alexander Mann Solutions Ltd,421160,2574.60,Mf Devolved Admin-hire Of Agency Staff,EC2N 3AQ,VENDOR
"Department for Business, Energy and Industrial Strategy","Department for Business, Energy and Industrial Strategy",22/12/2021 00:00,Hire Of Agency Staff,"Science, Innovation And Growth - Business Growth",Alexander Mann Solutions Ltd,421183,2700.00,Help To Grow: Digital-hire Of Agency Staff,EC2N 3AQ,VENDOR
"Department for Business, Energy and Industrial Strategy","Department for Business, Energy and Industrial Strategy",22/12/2021 00:00,Hire Of Agency Staff,"Science, Innovation And Growth - Business Growth",Alexander Mann Solutions Ltd,421185,2835.24,Help To Grow: Digital-hire Of Agency Staff,EC2N 3AQ,VENDOR
"Department for Business, Energy and Industrial Strategy","Department for Business, Energy and Industrial Strategy",22/12/2021 00:00,Consultancy Expenditure,"Science, Innovation And Growth - Business Growth",Alexander Mann Solutions Ltd,421192,4434.67,Help To Grow: Digital-consultancy Expenditure,EC2N 3AQ,VENDOR
"Department for Business, Energy and Industrial Strategy","Department for Business, Energy and Industrial Strategy",29/12/2021 00:00,Application Development,"Science, Innovation And Growth - Business Growth",Veracity Osi Uk Ltd,422107,116016.25,Help To Grow: Digital-application Development,EC3R 8LJ,VENDOR
"Department for Business, Energy and Industrial Strategy","Department for Business, Energy and Industrial Strategy",29/12/2021 00:00,Legal Services And Advice Agency,"Science, Innovation And Growth - Business Growth",Tlt Llp,422141,304.41,Help To Grow: Digital-legal Services And Advice Agency,BS1 6TP,VENDOR
"Department for Business, Energy and Industrial Strategy","Department for Business, Energy and Industrial Strategy",08/12/2021 00:00,Taxi Services Uk,"Science, Innovation And Growth - Business Growth","Personal Expense, Name Withheld",419320,7.80,Mf Devolved Admin-taxi Services Uk,,EMPLOYEE
"Department for Business, Energy and Industrial Strategy","Department for Business, Energy and Industrial Strategy",08/12/2021 00:00,Taxi Services Uk,"Science, Innovation And Growth - Business Growth","Personal Expense, Name Withheld",419320,16.25,Mf Devolved Admin-taxi Services Uk,,EMPLOYEE
"Department for Business, Energy and Industrial Strategy","Department for Business, Energy and Industrial Strategy",09/12/2021 00:00,Advertising,"Science, Innovation And Growth - Business Growth",Civic Computing Ltd,419445,830.00,Small Business Commissioner-advertising,EH2 4AX,VENDOR
"Department for Business, Energy and Industrial Strategy","Department for Business, Energy and Industrial Strategy",17/12/2021 00:00,Recruitment Advice And Services,"Science, Innovation And Growth - Business Growth",Nemeton Ltd,420798,700.00,Small Business Commissioner-recruitment Advice And Services,AL5 2NW,VENDOR
"Department for Business, Energy and Industrial Strategy","Department for Business, Energy and Industrial Strategy",10/12/2021 00:00,Publications,Business Sectors - Business Investment Directorate,Euromoney Trading Ltd,419857,7497.60,Mf Devolved Admin-publications,EC4Y 8AX,VENDOR
"Department for Business, Energy and Industrial Strategy","Department for Business, Energy and Industrial Strategy",17/12/2021 00:00,Mileage Allowance Uk,Business Sectors - Business Investment Directorate,"Personal Expense, Name Withheld",420880,43.65,Mf Devolved Admin-mileage Allowance Uk,,EMPLOYEE
"Department for Business, Energy and Industrial Strategy","Department for Business, Energy and Industrial Strategy",03/12/2021 00:00,Hire Of Interim Managers,"Science, Innovation And Growth - National Weights And Measures Laboratory",Alexander Mann Solutions Ltd,413976,136.50,B&S Covid-19 Devolved Admin-hire Of Interim Managers,EC2N 3AQ,VENDOR
"Department for Business, Energy and Industrial Strategy","Department for Business, Energy and Industrial Strategy",09/12/2021 00:00,Hire Of Interim Managers,"Science, Innovation And Growth - National Weights And Measures Laboratory",Allen Lane Ltd,414592,2313.60,Net Zero Costs - Admin-hire Of Interim Managers,SW1Y 6RJ,VENDOR
"Department for Business, Energy and Industrial Strategy","Department for Business, Energy and Industrial Strategy",03/12/2021 00:00,Hire Of Interim Managers,"Science, Innovation And Growth - National Weights And Measures Laboratory",Alexander Mann Solutions Ltd,415045,20686.58,B&S Covid-19 Devolved Admin-hire Of Interim Managers,EC2N 3AQ,VENDOR
"Department for Business, Energy and Industrial Strategy","Department for Business, Energy and Industrial Strategy",03/12/2021 00:00,Hire Of Interim Managers,"Science, Innovation And Growth - National Weights And Measures Laboratory",Alexander Mann Solutions Ltd,417348,955.50,B&S Covid-19 Devolved Admin-hire Of Interim Managers,EC2N 3AQ,VENDOR
"Department for Business, Energy and Industrial Strategy","Department for Business, Energy and Industrial Strategy",03/12/2021 00:00,Hire Of Interim Managers,"Science, Innovation And Growth - National Weights And Measures Laboratory",Alexander Mann Solutions Ltd,417487,2.40,B&S Covid-19 Devolved Admin-hire Of Interim Managers,EC2N 3AQ,VENDOR
"Department for Business, Energy and Industrial Strategy","Department for Business, Energy and Industrial Strategy",03/12/2021 00:00,Hire Of Interim Managers,"Science, Innovation And Growth - National Weights And Measures Laboratory",Alexander Mann Solutions Ltd,417487,9648.16,B&S Covid-19 Devolved Admin-hire Of Interim Managers,EC2N 3AQ,VENDOR
"Department for Business, Energy and Industrial Strategy","Department for Business, Energy and Industrial Strategy",02/12/2021 00:00,Hire Of Interim Managers,"Science, Innovation And Growth - National Weights And Measures Laboratory",Alexander Mann Solutions Ltd,417489,2653.98,B&S Covid-19 Devolved Admin-hire Of Interim Managers,EC2N 3AQ,VENDOR
"Department for Business, Energy and Industrial Strategy","Department for Business, Energy and Industrial Strategy",23/12/2021 00:00,Learning And Dev - Cs Skills,"Science, Innovation And Growth - National Weights And Measures Laboratory",Mycsp Ltd,417829,25.00,Mf Devolved Admin-learning And Dev - Cs Skills,SK3 0XN,VENDOR
"Department for Business, Energy and Industrial Strategy","Department for Business, Energy and Industrial Strategy",02/12/2021 00:00,Hire Of Interim Managers,"Science, Innovation And Growth - National Weights And Measures Laboratory",Allen Lane Ltd,417870,1850.88,Net Zero Costs - Admin-hire Of Interim Managers,SW1Y 6RJ,VENDOR
"Department for Business, Energy and Industrial Strategy","Department for Business, Energy and Industrial Strategy",08/12/2021 00:00,Current Grants To Local Government,"Science, Innovation And Growth - National Weights And Measures Laboratory",Adur District Council,418739,18600.00,"New Burdens 5 - Post Payment Assurance, Reconciliation And Debt Recovery-current Grants To Local Government",BN11 1HA,GRANT
"Department for Business, Energy and Industrial Strategy","Department for Business, Energy and Industrial Strategy",08/12/2021 00:00,Current Grants To Local Government,"Science, Innovation And Growth - National Weights And Measures Laboratory",Allerdale Borough Council,418740,22140.00,"New Burdens 5 - Post Payment Assurance, Reconciliation And Debt Recovery-current Grants To Local Government",CA14 3YJ,WGA ONLY
"Department for Business, Energy and Industrial Strategy","Department for Business, Energy and Industrial Strategy",08/12/2021 00:00,Current Grants To Local Government,"Science, Innovation And Growth - National Weights And Measures Laboratory",Amber Valley Borough Council,418741,18600.00,"New Burdens 5 - Post Payment Assurance, Reconciliation And Debt Recovery-current Grants To Local Government",DE5 3BT,GRANT
"Department for Business, Energy and Industrial Strategy","Department for Business, Energy and Industrial Strategy",08/12/2021 00:00,Current Grants To Local Government,"Science, Innovation And Growth - National Weights And Measures Laboratory",Arun District Council,418742,22140.00,"New Burdens 5 - Post Payment Assurance, Reconciliation And Debt Recovery-current Grants To Local Government",BN17 5LF,GRANT
"Department for Business, Energy and Industrial Strategy","Department for Business, Energy and Industrial Strategy",08/12/2021 00:00,Current Grants To Local Government,"Science, Innovation And Growth - National Weights And Measures Laboratory",Ashfield District Council,418743,18600.00,"New Burdens 5 - Post Payment Assurance, Reconciliation And Debt Recovery-current Grants To Local Government",NG17 8DA,GRANT
"Department for Business, Energy and Industrial Strategy","Department for Business, Energy and Industrial Strategy",08/12/2021 00:00,Current Grants To Local Government,"Science, Innovation And Growth - National Weights And Measures Laboratory",Ashford Borough Council,418744,22140.00,"New Burdens 5 - Post Payment Assurance, Reconciliation And Debt Recovery-current Grants To Local Government",TN23 1PL,GRANT
"Department for Business, Energy and Industrial Strategy","Department for Business, Energy and Industrial Strategy",08/12/2021 00:00,Current Grants To Local Government,"Science, Innovation And Growth - National Weights And Measures Laboratory",Babergh District Council,418745,18600.00,"New Burdens 5 - Post Payment Assurance, Reconciliation And Debt Recovery-current Grants To Local Government",IP1 2BX,GRANT
"Department for Business, Energy and Industrial Strategy","Department for Business, Energy and Industrial Strategy",08/12/2021 00:00,Current Grants To Local Government,"Science, Innovation And Growth - National Weights And Measures Laboratory",Barnsley Metropolitan Borough Council,418746,22140.00,"New Burdens 5 - Post Payment Assurance, Reconciliation And Debt Recovery-current Grants To Local Government",S70 2TA,WGA ONLY
"Department for Business, Energy and Industrial Strategy","Department for Business, Energy and Industrial Strategy",08/12/2021 00:00,Current Grants To Local Government,"Science, Innovation And Growth - National Weights And Measures Laboratory",Barrow Borough Council,418747,18600.00,"New Burdens 5 - Post Payment Assurance, Reconciliation And Debt Recovery-current Grants To Local Government",LA14 2LD,GRANT
"Department for Business, Energy and Industrial Strategy","Department for Business, Energy and Industrial Strategy",08/12/2021 00:00,Current Grants To Local Government,"Science, Innovation And Growth - National Weights And Measures Laboratory",Basildon Borough Council,418748,18600.00,"New Burdens 5 - Post Payment Assurance, Reconciliation And Debt Recovery-current Grants To Local Government",SS14 1DL,GRANT
"Department for Business, Energy and Industrial Strategy","Department for Business, Energy and Industrial Strategy",08/12/2021 00:00,Current Grants To Local Government,"Science, Innovation And Growth - National Weights And Measures Laboratory",Basingstoke And Deane Borough Council,418749,18600.00,"New Burdens 5 - Post Payment Assurance, Reconciliation And Debt Recovery-current Grants To Local Government",RG21 4AH,GRANT
"Department for Business, Energy and Industrial Strategy","Department for Business, Energy and Industrial Strategy",08/12/2021 00:00,Current Grants To Local Government,"Science, Innovation And Growth - National Weights And Measures Laboratory",Bassetlaw District Council,418750,18600.00,"New Burdens 5 - Post Payment Assurance, Reconciliation And Debt Recovery-current Grants To Local Government",S80 2AH,GRANT
"Department for Business, Energy and Industrial Strategy","Department for Business, Energy and Industrial Strategy",08/12/2021 00:00,Current Grants To Local Government,"Science, Innovation And Growth - National Weights And Measures Laboratory",Bath & North East Somerset Council,418751,25620.00,"New Burdens 5 - Post Payment Assurance, Reconciliation And Debt Recovery-current Grants To Local Government",BA1 1JG,WGA ONLY
"Department for Business, Energy and Industrial Strategy","Department for Business, Energy and Industrial Strategy",08/12/2021 00:00,Current Grants To Local Government,"Science, Innovation And Growth - National Weights And Measures Laboratory",Middlesbrough Borough Council,418752,18600.00,"New Burdens 5 - Post Payment Assurance, Reconciliation And Debt Recovery-current Grants To Local Government",TS1 9FT,GRANT
"Department for Business, Energy and Industrial Strategy","Department for Business, Energy and Industrial Strategy",08/12/2021 00:00,Current Grants To Local Government,"Science, Innovation And Growth - National Weights And Measures Laboratory",Birmingham City Council,418753,32700.00,"New Burdens 5 - Post Payment Assurance, Reconciliation And Debt Recovery-current Grants To Local Government",B2 2AJ,WGA ONLY
"Department for Business, Energy and Industrial Strategy","Department for Business, Energy and Industrial Strategy",08/12/2021 00:00,Current Grants To Local Government,"Science, Innovation And Growth - National Weights And Measures Laboratory",Blaby District Council,418754,18600.00,"New Burdens 5 - Post Payment Assurance, Reconciliation And Debt Recovery-current Grants To Local Government",LE19 2EP,GRANT
"Department for Business, Energy and Industrial Strategy","Department for Business, Energy and Industrial Strategy",08/12/2021 00:00,Current Grants To Local Government,"Science, Innovation And Growth - National Weights And Measures Laboratory",Blackburn With Darwen Borough Council,418755,22140.00,"New Burdens 5 - Post Payment Assurance, Reconciliation And Debt Recovery-current Grants To Local Government",BB1 7DY,GRANT
"Department for Business, Energy and Industrial Strategy","Department for Business, Energy and Industrial Strategy",08/12/2021 00:00,Current Grants To Local Government,"Science, Innovation And Growth - National Weights And Measures Laboratory",Blackpool Council,418757,25620.00,"New Burdens 5 - Post Payment Assurance, Reconciliation And Debt Recovery-current Grants To Local Government",FY1 1NA,GRANT
"Department for Business, Energy and Industrial Strategy","Department for Business, Energy and Industrial Strategy",08/12/2021 00:00,Current Grants To Local Government,"Science, Innovation And Growth - National Weights And Measures Laboratory",Bolsover District Council,418759,18600.00,"New Burdens 5 - Post Payment Assurance, Reconciliation And Debt Recovery-current Grants To Local Government",S43 4JY,GRANT
"Department for Business, Energy and Industrial Strategy","Department for Business, Energy and Industrial Strategy",08/12/2021 00:00,Current Grants To Local Government,"Science, Innovation And Growth - National Weights And Measures Laboratory",Darlington Borough Council,418760,18600.00,"New Burdens 5 - Post Payment Assurance, Reconciliation And Debt Recovery-current Grants To Local Government",DL1 5QT,WGA ONLY
"Department for Business, Energy and Industrial Strategy","Department for Business, Energy and Industrial Strategy",08/12/2021 00:00,Current Grants To Local Government,"Science, Innovation And Growth - National Weights And Measures Laboratory",Reading Borough Council,418761,22140.00,"New Burdens 5 - Post Payment Assurance, Reconciliation And Debt Recovery-current Grants To Local Government",RG1 2LU,WGA ONLY
"Department for Business, Energy and Industrial Strategy","Department for Business, Energy and Industrial Strategy",08/12/2021 00:00,Current Grants To Local Government,"Science, Innovation And Growth - National Weights And Measures Laboratory",Broxbourne Borough Council,418762,18600.00,"New Burdens 5 - Post Payment Assurance, Reconciliation And Debt Recovery-current Grants To Local Government",EN8 9XG,GRANT
"Department for Business, Energy and Industrial Strategy","Department for Business, Energy and Industrial Strategy",08/12/2021 00:00,Current Grants To Local Government,"Science, Innovation And Growth - National Weights And Measures Laboratory",Boston Borough Council,418763,18600.00,"New Burdens 5 - Post Payment Assurance, Reconciliation And Debt Recovery-current Grants To Local Government",PE21 8QR,GRANT
"Department for Business, Energy and Industrial Strategy","Department for Business, Energy and Industrial Strategy",08/12/2021 00:00,Current Grants To Local Government,"Science, Innovation And Growth - National Weights And Measures Laboratory","Bournemouth, Christchurch And Poole Council (Bcp Council)",418764,29160.00,"New Burdens 5 - Post Payment Assurance, Reconciliation And Debt Recovery-current Grants To Local Government",BH2 6DY,GRANT
"Department for Business, Energy and Industrial Strategy","Department for Business, Energy and Industrial Strategy",08/12/2021 00:00,Current Grants To Local Government,"Science, Innovation And Growth - National Weights And Measures Laboratory",Bracknell Forest Council,418765,18600.00,"New Burdens 5 - Post Payment Assurance, Reconciliation And Debt Recovery-current Grants To Local Government",RG12 1JD,WGA ONLY
"Department for Business, Energy and Industrial Strategy","Department for Business, Energy and Industrial Strategy",07/12/2021 00:00,Hire Of Interim Managers,"Science, Innovation And Growth - National Weights And Measures Laboratory",Alexander Mann Solutions Ltd,418767,3184.70,B&S Covid-19 Devolved Admin-hire Of Interim Managers,EC2N 3AQ,VENDOR
"Department for Business, Energy and Industrial Strategy","Department for Business, Energy and Industrial Strategy",07/12/2021 00:00,Hire Of Interim Managers,"Science, Innovation And Growth - National Weights And Measures Laboratory",Alexander Mann Solutions Ltd,418768,764.40,B&S Covid-19 Devolved Admin-hire Of Interim Managers,EC2N 3AQ,VENDOR
"Department for Business, Energy and Industrial Strategy","Department for Business, Energy and Industrial Strategy",08/12/2021 00:00,Current Grants To Local Government,"Science, Innovation And Growth - National Weights And Measures Laboratory",Braintree District Council,418776,18600.00,"New Burdens 5 - Post Payment Assurance, Reconciliation And Debt Recovery-current Grants To Local Government",CM7 9HB,GRANT
"Department for Business, Energy and Industrial Strategy","Department for Business, Energy and Industrial Strategy",08/12/2021 00:00,Current Grants To Local Government,"Science, Innovation And Growth - National Weights And Measures Laboratory",Breckland Council,418777,18600.00,"New Burdens 5 - Post Payment Assurance, Reconciliation And Debt Recovery-current Grants To Local Government",NR19 1EE,GRANT
"Department for Business, Energy and Industrial Strategy","Department for Business, Energy and Industrial Strategy",08/12/2021 00:00,Current Grants To Local Government,"Science, Innovation And Growth - National Weights And Measures Laboratory",Brentwood Borough Council,418779,18600.00,"New Burdens 5 - Post Payment Assurance, Reconciliation And Debt Recovery-current Grants To Local Government",CM15 8AY,GRANT
"Department for Business, Energy and Industrial Strategy","Department for Business, Energy and Industrial Strategy",08/12/2021 00:00,Current Grants To Local Government,"Science, Innovation And Growth - National Weights And Measures Laboratory",Brighton And Hove City Council,418780,29160.00,"New Burdens 5 - Post Payment Assurance, Reconciliation And Debt Recovery-current Grants To Local Government",BN3 3BQ,VENDOR
"Department for Business, Energy and Industrial Strategy","Department for Business, Energy and Industrial Strategy",08/12/2021 00:00,Current Grants To Local Government,"Science, Innovation And Growth - National Weights And Measures Laboratory",Bristol City Council,418781,29160.00,"New Burdens 5 - Post Payment Assurance, Reconciliation And Debt Recovery-current Grants To Local Government",BS1 9NE,WGA ONLY
"Department for Business, Energy and Industrial Strategy","Department for Business, Energy and Industrial Strategy",08/12/2021 00:00,Current Grants To Local Government,"Science, Innovation And Growth - National Weights And Measures Laboratory",Broadland District Council,418782,18600.00,"New Burdens 5 - Post Payment Assurance, Reconciliation And Debt Recovery-current Grants To Local Government",NR7 0DU,GRANT
"Department for Business, Energy and Industrial Strategy","Department for Business, Energy and Industrial Strategy",07/12/2021 00:00,Hire Of Interim Managers,"Science, Innovation And Growth - National Weights And Measures Laboratory",Alexander Mann Solutions Ltd,418784,5312.76,B&S Covid-19 Devolved Admin-hire Of Interim Managers,EC2N 3AQ,VENDOR
"Department for Business, Energy and Industrial Strategy","Department for Business, Energy and Industrial Strategy",08/12/2021 00:00,Current Grants To Local Government,"Science, Innovation And Growth - National Weights And Measures Laboratory",Slough Borough Council,418785,18600.00,"New Burdens 5 - Post Payment Assurance, Reconciliation And Debt Recovery-current Grants To Local Government",SL1 2EJ,VENDOR
"Department for Business, Energy and Industrial Strategy","Department for Business, Energy and Industrial Strategy",08/12/2021 00:00,Current Grants To Local Government,"Science, Innovation And Growth - National Weights And Measures Laboratory",Broxtowe Borough Council,418786,18600.00,"New Burdens 5 - Post Payment Assurance, Reconciliation And Debt Recovery-current Grants To Local Government",NG9 1AB,WGA ONLY
"Department for Business, Energy and Industrial Strategy","Department for Business, Energy and Industrial Strategy",08/12/2021 00:00,Current Grants To Local Government,"Science, Innovation And Growth - National Weights And Measures Laboratory",Buckinghamshire Council,418787,29160.00,"New Burdens 5 - Post Payment Assurance, Reconciliation And Debt Recovery-current Grants To Local Government",HP19 8FF,WGA ONLY
"Department for Business, Energy and Industrial Strategy","Department for Business, Energy and Industrial Strategy",08/12/2021 00:00,Current Grants To Local Government,"Science, Innovation And Growth - National Weights And Measures Laboratory",Portsmouth City Council,418789,22140.00,"New Burdens 5 - Post Payment Assurance, Reconciliation And Debt Recovery-current Grants To Local Government",PO1 2AR,WGA ONLY
"Department for Business, Energy and Industrial Strategy","Department for Business, Energy and Industrial Strategy",08/12/2021 00:00,Current Grants To Local Government,"Science, Innovation And Growth - National Weights And Measures Laboratory",Bury Metropolitan Borough Council,418790,22140.00,"New Burdens 5 - Post Payment Assurance, Reconciliation And Debt Recovery-current Grants To Local Government",BL9 0SW,GRANT
"Department for Business, Energy and Industrial Strategy","Department for Business, Energy and Industrial Strategy",08/12/2021 00:00,Current Grants To Local Government,"Science, Innovation And Growth - National Weights And Measures Laboratory",Calderdale Metropolitan Borough Council,418792,22140.00,"New Burdens 5 - Post Payment Assurance, Reconciliation And Debt Recovery-current Grants To Local Government",HX1 1UJ,WGA ONLY
"Department for Business, Energy and Industrial Strategy","Department for Business, Energy and Industrial Strategy",08/12/2021 00:00,Current Grants To Local Government,"Science, Innovation And Growth - National Weights And Measures Laboratory",Cambridge City Council,418793,22140.00,"New Burdens 5 - Post Payment Assurance, Reconciliation And Debt Recovery-current Grants To Local Government",CB2 3QJ,GRANT
"Department for Business, Energy and Industrial Strategy","Department for Business, Energy and Industrial Strategy",08/12/2021 00:00,Current Grants To Local Government,"Science, Innovation And Growth - National Weights And Measures Laboratory",Bedford Borough Council,418796,18600.00,"New Burdens 5 - Post Payment Assurance, Reconciliation And Debt Recovery-current Grants To Local Government",MK42 9AP,GRANT
"Department for Business, Energy and Industrial Strategy","Department for Business, Energy and Industrial Strategy",08/12/2021 00:00,Current Grants To Local Government,"Science, Innovation And Growth - National Weights And Measures Laboratory",Canterbury City Council,418798,22140.00,"New Burdens 5 - Post Payment Assurance, Reconciliation And Debt Recovery-current Grants To Local Government",CT1 1YW,GRANT
"Department for Business, Energy and Industrial Strategy","Department for Business, Energy and Industrial Strategy",08/12/2021 00:00,Current Grants To Local Government,"Science, Innovation And Growth - National Weights And Measures Laboratory",Carlisle City Council,418799,18600.00,"New Burdens 5 - Post Payment Assurance, Reconciliation And Debt Recovery-current Grants To Local Government",CA3 8QG,GRANT
"Department for Business, Energy and Industrial Strategy","Department for Business, Energy and Industrial Strategy",08/12/2021 00:00,Current Grants To Local Government,"Science, Innovation And Growth - National Weights And Measures Laboratory",Bolton Metropolitan Borough Council,418801,25620.00,"New Burdens 5 - Post Payment Assurance, Reconciliation And Debt Recovery-current Grants To Local Government",BL1 1RU,WGA ONLY
"Department for Business, Energy and Industrial Strategy","Department for Business, Energy and Industrial Strategy",07/12/2021 00:00,Hire Of Interim Managers,"Science, Innovation And Growth - National Weights And Measures Laboratory",Alexander Mann Solutions Ltd,418802,2653.98,B&S Covid-19 Devolved Admin-hire Of Interim Managers,EC2N 3AQ,VENDOR
"Department for Business, Energy and Industrial Strategy","Department for Business, Energy and Industrial Strategy",08/12/2021 00:00,Current Grants To Local Government,"Science, Innovation And Growth - National Weights And Measures Laboratory",Central Bedfordshire Council,418803,22140.00,"New Burdens 5 - Post Payment Assurance, Reconciliation And Debt Recovery-current Grants To Local Government",SG17 5TQ,GRANT
"Department for Business, Energy and Industrial Strategy","Department for Business, Energy and Industrial Strategy",08/12/2021 00:00,Current Grants To Local Government,"Science, Innovation And Growth - National Weights And Measures Laboratory",Charnwood Borough Council,418804,22140.00,"New Burdens 5 - Post Payment Assurance, Reconciliation And Debt Recovery-current Grants To Local Government",LE11 2TU,GRANT
"Department for Business, Energy and Industrial Strategy","Department for Business, Energy and Industrial Strategy",08/12/2021 00:00,Current Grants To Local Government,"Science, Innovation And Growth - National Weights And Measures Laboratory",Chelmsford City Council,418806,22140.00,"New Burdens 5 - Post Payment Assurance, Reconciliation And Debt Recovery-current Grants To Local Government",CM1 1JE,GRANT
"Department for Business, Energy and Industrial Strategy","Department for Business, Energy and Industrial Strategy",08/12/2021 00:00,Current Grants To Local Government,"Science, Innovation And Growth - National Weights And Measures Laboratory",Cheltenham Borough Council,418807,18600.00,"New Burdens 5 - Post Payment Assurance, Reconciliation And Debt Recovery-current Grants To Local Government",GL50 1PP,GRANT
"Department for Business, Energy and Industrial Strategy","Department for Business, Energy and Industrial Strategy",08/12/2021 00:00,Current Grants To Local Government,"Science, Innovation And Growth - National Weights And Measures Laboratory",Cherwell District Council,418808,22140.00,"New Burdens 5 - Post Payment Assurance, Reconciliation And Debt Recovery-current Grants To Local Government",OX15 4AA,WGA ONLY
"Department for Business, Energy and Industrial Strategy","Department for Business, Energy and Industrial Strategy",08/12/2021 00:00,Current Grants To Local Government,"Science, Innovation And Growth - National Weights And Measures Laboratory",Cheshire East Borough Council,418809,29160.00,"New Burdens 5 - Post Payment Assurance, Reconciliation And Debt Recovery-current Grants To Local Government",CW11 1HZ,WGA ONLY
"Department for Business, Energy and Industrial Strategy","Department for Business, Energy and Industrial Strategy",08/12/2021 00:00,Current Grants To Local Government,"Science, Innovation And Growth - National Weights And Measures Laboratory",Cheshire West And Chester Council,418810,25620.00,"New Burdens 5 - Post Payment Assurance, Reconciliation And Debt Recovery-current Grants To Local Government",CH65 0BE,GRANT
"Department for Business, Energy and Industrial Strategy","Department for Business, Energy and Industrial Strategy",08/12/2021 00:00,Current Grants To Local Government,"Science, Innovation And Growth - National Weights And Measures Laboratory",Chesterfield Borough Council,418812,18600.00,"New Burdens 5 - Post Payment Assurance, Reconciliation And Debt Recovery-current Grants To Local Government",S40 1LP,GRANT
"Department for Business, Energy and Industrial Strategy","Department for Business, Energy and Industrial Strategy",08/12/2021 00:00,Current Grants To Local Government,"Science, Innovation And Growth - National Weights And Measures Laboratory",Chichester District Council,418821,22140.00,"New Burdens 5 - Post Payment Assurance, Reconciliation And Debt Recovery-current Grants To Local Government",PO19 1TY,GRANT
"Department for Business, Energy and Industrial Strategy","Department for Business, Energy and Industrial Strategy",08/12/2021 00:00,Current Grants To Local Government,"Science, Innovation And Growth - National Weights And Measures Laboratory",Chorley Borough Council,418822,18600.00,"New Burdens 5 - Post Payment Assurance, Reconciliation And Debt Recovery-current Grants To Local Government",PR7 1AL,GRANT
"Department for Business, Energy and Industrial Strategy","Department for Business, Energy and Industrial Strategy",08/12/2021 00:00,Current Grants To Local Government,"Science, Innovation And Growth - National Weights And Measures Laboratory",City Of Bradford Metropolitan District Council,418824,29160.00,"New Burdens 5 - Post Payment Assurance, Reconciliation And Debt Recovery-current Grants To Local Government",BD1 1HX,VENDOR
"Department for Business, Energy and Industrial Strategy","Department for Business, Energy and Industrial Strategy",08/12/2021 00:00,Current Grants To Local Government,"Science, Innovation And Growth - National Weights And Measures Laboratory",City Of Lincoln Council,418825,18600.00,"New Burdens 5 - Post Payment Assurance, Reconciliation And Debt Recovery-current Grants To Local Government",LN1 1DB,GRANT
"Department for Business, Energy and Industrial Strategy","Department for Business, Energy and Industrial Strategy",08/12/2021 00:00,Current Grants To Local Government,"Science, Innovation And Growth - National Weights And Measures Laboratory",City Of London,418827,25620.00,"New Burdens 5 - Post Payment Assurance, Reconciliation And Debt Recovery-current Grants To Local Government",EC2P 2EJ,VENDOR
"Department for Business, Energy and Industrial Strategy","Department for Business, Energy and Industrial Strategy",08/12/2021 00:00,Current Grants To Local Government,"Science, Innovation And Growth - National Weights And Measures Laboratory",City Of Wolverhampton Council,418828,22140.00,"New Burdens 5 - Post Payment Assurance, Reconciliation And Debt Recovery-current Grants To Local Government",WV1 1RL,GRANT
"Department for Business, Energy and Industrial Strategy","Department for Business, Energy and Industrial Strategy",08/12/2021 00:00,Current Grants To Local Government,"Science, Innovation And Growth - National Weights And Measures Laboratory",City Of York Council,418830,25620.00,"New Burdens 5 - Post Payment Assurance, Reconciliation And Debt Recovery-current Grants To Local Government",YO1 6GA,GRANT
"Department for Business, Energy and Industrial Strategy","Department for Business, Energy and Industrial Strategy",08/12/2021 00:00,Current Grants To Local Government,"Science, Innovation And Growth - National Weights And Measures Laboratory",Colchester Borough Council,418831,22140.00,"New Burdens 5 - Post Payment Assurance, Reconciliation And Debt Recovery-current Grants To Local Government",CO3 3WG,VENDOR
"Department for Business, Energy and Industrial Strategy","Department for Business, Energy and Industrial Strategy",08/12/2021 00:00,Current Grants To Local Government,"Science, Innovation And Growth - National Weights And Measures Laboratory",Copeland Borough Council,418832,18600.00,"New Burdens 5 - Post Payment Assurance, Reconciliation And Debt Recovery-current Grants To Local Government",CA28 7JG,GRANT
"Department for Business, Energy and Industrial Strategy","Department for Business, Energy and Industrial Strategy",08/12/2021 00:00,Current Grants To Local Government,"Science, Innovation And Growth - National Weights And Measures Laboratory",Cornwall Council,418833,32700.00,"New Burdens 5 - Post Payment Assurance, Reconciliation And Debt Recovery-current Grants To Local Government",TR1 3AY,WGA ONLY
"Department for Business, Energy and Industrial Strategy","Department for Business, Energy and Industrial Strategy",08/12/2021 00:00,Current Grants To Local Government,"Science, Innovation And Growth - National Weights And Measures Laboratory",Cotswold District Council,418835,22140.00,"New Burdens 5 - Post Payment Assurance, Reconciliation And Debt Recovery-current Grants To Local Government",GL7 1PX,GRANT
"Department for Business, Energy and Industrial Strategy","Department for Business, Energy and Industrial Strategy",08/12/2021 00:00,Current Grants To Local Government,"Science, Innovation And Growth - National Weights And Measures Laboratory",Council Of The Isles Of Scilly,418836,18600.00,"New Burdens 5 - Post Payment Assurance, Reconciliation And Debt Recovery-current Grants To Local Government",TR21 0LW,WGA ONLY
"Department for Business, Energy and Industrial Strategy","Department for Business, Energy and Industrial Strategy",08/12/2021 00:00,Current Grants To Local Government,"Science, Innovation And Growth - National Weights And Measures Laboratory",Coventry City Council,418837,25620.00,"New Burdens 5 - Post Payment Assurance, Reconciliation And Debt Recovery-current Grants To Local Government",CV1 5RR,WGA ONLY
"Department for Business, Energy and Industrial Strategy","Department for Business, Energy and Industrial Strategy",08/12/2021 00:00,Current Grants To Local Government,"Science, Innovation And Growth - National Weights And Measures Laboratory",Craven District Council,418838,18600.00,"New Burdens 5 - Post Payment Assurance, Reconciliation And Debt Recovery-current Grants To Local Government",BD23 1FJ,GRANT
"Department for Business, Energy and Industrial Strategy","Department for Business, Energy and Industrial Strategy",08/12/2021 00:00,Current Grants To Local Government,"Science, Innovation And Growth - National Weights And Measures Laboratory",Crawley Borough Council,418839,18600.00,"New Burdens 5 - Post Payment Assurance, Reconciliation And Debt Recovery-current Grants To Local Government",RH10 1UZ,VENDOR
"Department for Business, Energy and Industrial Strategy","Department for Business, Energy and Industrial Strategy",08/12/2021 00:00,Current Grants To Local Government,"Science, Innovation And Growth - National Weights And Measures Laboratory",Dacorum Borough Council,418840,18600.00,"New Burdens 5 - Post Payment Assurance, Reconciliation And Debt Recovery-current Grants To Local Government",HP1 1DN,GRANT
"Department for Business, Energy and Industrial Strategy","Department for Business, Energy and Industrial Strategy",08/12/2021 00:00,Current Grants To Local Government,"Science, Innovation And Growth - National Weights And Measures Laboratory",West Northamptonshire Council,418841,25620.00,"New Burdens 5 - Post Payment Assurance, Reconciliation And Debt Recovery-current Grants To Local Government",NN1 1ED,GRANT
"Department for Business, Energy and Industrial Strategy","Department for Business, Energy and Industrial Strategy",08/12/2021 00:00,Current Grants To Local Government,"Science, Innovation And Growth - National Weights And Measures Laboratory",Dartford Borough Council,418844,18600.00,"New Burdens 5 - Post Payment Assurance, Reconciliation And Debt Recovery-current Grants To Local Government",DA1 1DR,GRANT
"Department for Business, Energy and Industrial Strategy","Department for Business, Energy and Industrial Strategy",08/12/2021 00:00,Current Grants To Local Government,"Science, Innovation And Growth - National Weights And Measures Laboratory",Derby City Council,418846,22140.00,"New Burdens 5 - Post Payment Assurance, Reconciliation And Debt Recovery-current Grants To Local Government",DE1 2FS,GRANT
"Department for Business, Energy and Industrial Strategy","Department for Business, Energy and Industrial Strategy",08/12/2021 00:00,Current Grants To Local Government,"Science, Innovation And Growth - National Weights And Measures Laboratory",Derbyshire Dales District Council,418848,22140.00,"New Burdens 5 - Post Payment Assurance, Reconciliation And Debt Recovery-current Grants To Local Government",DE4 3NN,GRANT
"Department for Business, Energy and Industrial Strategy","Department for Business, Energy and Industrial Strategy",08/12/2021 00:00,Current Grants To Local Government,"Science, Innovation And Growth - National Weights And Measures Laboratory",Doncaster Council (Doncaster Metropolitan Borough Council),418849,22140.00,"New Burdens 5 - Post Payment Assurance, Reconciliation And Debt Recovery-current Grants To Local Government",DN1 3BU,WGA ONLY
"Department for Business, Energy and Industrial Strategy","Department for Business, Energy and Industrial Strategy",08/12/2021 00:00,Current Grants To Local Government,"Science, Innovation And Growth - National Weights And Measures Laboratory",Dorset Council,418850,32700.00,"New Burdens 5 - Post Payment Assurance, Reconciliation And Debt Recovery-current Grants To Local Government",DT1 1UZ,VENDOR
"Department for Business, Energy and Industrial Strategy","Department for Business, Energy and Industrial Strategy",08/12/2021 00:00,Current Grants To Local Government,"Science, Innovation And Growth - National Weights And Measures Laboratory",Dover District Council,418852,18600.00,"New Burdens 5 - Post Payment Assurance, Reconciliation And Debt Recovery-current Grants To Local Government",CT16 3PJ,GRANT
"Department for Business, Energy and Industrial Strategy","Department for Business, Energy and Industrial Strategy",08/12/2021 00:00,Current Grants To Local Government,"Science, Innovation And Growth - National Weights And Measures Laboratory",Dudley Metropolitan Borough Council,418857,25620.00,"New Burdens 5 - Post Payment Assurance, Reconciliation And Debt Recovery-current Grants To Local Government",DY1 1HF,GRANT
"Department for Business, Energy and Industrial Strategy","Department for Business, Energy and Industrial Strategy",08/12/2021 00:00,Current Grants To Local Government,"Science, Innovation And Growth - National Weights And Measures Laboratory",Durham County Council,418858,29160.00,"New Burdens 5 - Post Payment Assurance, Reconciliation And Debt Recovery-current Grants To Local Government",DH1 5UQ,GRANT
"Department for Business, Energy and Industrial Strategy","Department for Business, Energy and Industrial Strategy",08/12/2021 00:00,Current Grants To Local Government,"Science, Innovation And Growth - National Weights And Measures Laboratory",East Cambridgeshire District Council,418860,18600.00,"New Burdens 5 - Post Payment Assurance, Reconciliation And Debt Recovery-current Grants To Local Government",CB7 4EE,GRANT
"Department for Business, Energy and Industrial Strategy","Department for Business, Energy and Industrial Strategy",08/12/2021 00:00,Current Grants To Local Government,"Science, Innovation And Growth - National Weights And Measures Laboratory",East Devon District Council,418861,22140.00,"New Burdens 5 - Post Payment Assurance, Reconciliation And Debt Recovery-current Grants To Local Government",EX14 1EJ,GRANT
"Department for Business, Energy and Industrial Strategy","Department for Business, Energy and Industrial Strategy",08/12/2021 00:00,Current Grants To Local Government,"Science, Innovation And Growth - National Weights And Measures Laboratory",Erewash Borough Council,418862,18600.00,"New Burdens 5 - Post Payment Assurance, Reconciliation And Debt Recovery-current Grants To Local Government",DE7 5SE,GRANT
"Department for Business, Energy and Industrial Strategy","Department for Business, Energy and Industrial Strategy",08/12/2021 00:00,Current Grants To Local Government,"Science, Innovation And Growth - National Weights And Measures Laboratory",East Hertfordshire District Council,418864,22140.00,"New Burdens 5 - Post Payment Assurance, Reconciliation And Debt Recovery-current Grants To Local Government",SG13 8EQ,GRANT
"Department for Business, Energy and Industrial Strategy","Department for Business, Energy and Industrial Strategy",08/12/2021 00:00,Current Grants To Local Government,"Science, Innovation And Growth - National Weights And Measures Laboratory",East Lindsey Distrcit Council,418865,25620.00,"New Burdens 5 - Post Payment Assurance, Reconciliation And Debt Recovery-current Grants To Local Government",LN11 8UP,VENDOR
"Department for Business, Energy and Industrial Strategy","Department for Business, Energy and Industrial Strategy",08/12/2021 00:00,Current Grants To Local Government,"Science, Innovation And Growth - National Weights And Measures Laboratory",East Riding Of Yorkshire Council,418867,29160.00,"New Burdens 5 - Post Payment Assurance, Reconciliation And Debt Recovery-current Grants To Local Government",HU17 9BA,VENDOR
"Department for Business, Energy and Industrial Strategy","Department for Business, Energy and Industrial Strategy",08/12/2021 00:00,Current Grants To Local Government,"Science, Innovation And Growth - National Weights And Measures Laboratory",Wealden District Council,418868,22140.00,"New Burdens 5 - Post Payment Assurance, Reconciliation And Debt Recovery-current Grants To Local Government",BN27 2AX,VENDOR
"Department for Business, Energy and Industrial Strategy","Department for Business, Energy and Industrial Strategy",08/12/2021 00:00,Current Grants To Local Government,"Science, Innovation And Growth - National Weights And Measures Laboratory",East Suffolk Council,418869,25620.00,"New Burdens 5 - Post Payment Assurance, Reconciliation And Debt Recovery-current Grants To Local Government",IP12 1RT,GRANT
"Department for Business, Energy and Industrial Strategy","Department for Business, Energy and Industrial Strategy",08/12/2021 00:00,Current Grants To Local Government,"Science, Innovation And Growth - National Weights And Measures Laboratory",Eastbourne Borough Council,418870,18600.00,"New Burdens 5 - Post Payment Assurance, Reconciliation And Debt Recovery-current Grants To Local Government",BN21 4TW,GRANT
"Department for Business, Energy and Industrial Strategy","Department for Business, Energy and Industrial Strategy",08/12/2021 00:00,Current Grants To Local Government,"Science, Innovation And Growth - National Weights And Measures Laboratory",Eastleigh Borough Council,418871,18600.00,"New Burdens 5 - Post Payment Assurance, Reconciliation And Debt Recovery-current Grants To Local Government",SO50 9YN,GRANT
"Department for Business, Energy and Industrial Strategy","Department for Business, Energy and Industrial Strategy",08/12/2021 00:00,Current Grants To Local Government,"Science, Innovation And Growth - National Weights And Measures Laboratory",Eden District Council,418872,22140.00,"New Burdens 5 - Post Payment Assurance, Reconciliation And Debt Recovery-current Grants To Local Government",CA11 7QF,WGA ONLY
"Department for Business, Energy and Industrial Strategy","Department for Business, Energy and Industrial Strategy",08/12/2021 00:00,Current Grants To Local Government,"Science, Innovation And Growth - National Weights And Measures Laboratory",Elmbridge Borough Council,418901,18600.00,"New Burdens 5 - Post Payment Assurance, Reconciliation And Debt Recovery-current Grants To Local Government",KT10 9SD,GRANT
"Department for Business, Energy and Industrial Strategy","Department for Business, Energy and Industrial Strategy",08/12/2021 00:00,Current Grants To Local Government,"Science, Innovation And Growth - National Weights And Measures Laboratory",Epping Forest District Council,418905,18600.00,"New Burdens 5 - Post Payment Assurance, Reconciliation And Debt Recovery-current Grants To Local Government",CM16 4BZ,GRANT
"Department for Business, Energy and Industrial Strategy","Department for Business, Energy and Industrial Strategy",08/12/2021 00:00,Current Grants To Local Government,"Science, Innovation And Growth - National Weights And Measures Laboratory",Epsom And Ewell Borough Council,418906,18600.00,"New Burdens 5 - Post Payment Assurance, Reconciliation And Debt Recovery-current Grants To Local Government",KT18 5BY,GRANT
"Department for Business, Energy and Industrial Strategy","Department for Business, Energy and Industrial Strategy",08/12/2021 00:00,Current Grants To Local Government,"Science, Innovation And Growth - National Weights And Measures Laboratory",Maldon District Council,418907,18600.00,"New Burdens 5 - Post Payment Assurance, Reconciliation And Debt Recovery-current Grants To Local Government",CM9 5DL,GRANT
"Department for Business, Energy and Industrial Strategy","Department for Business, Energy and Industrial Strategy",08/12/2021 00:00,Current Grants To Local Government,"Science, Innovation And Growth - National Weights And Measures Laboratory",Exeter City Council,418908,22140.00,"New Burdens 5 - Post Payment Assurance, Reconciliation And Debt Recovery-current Grants To Local Government",EX1 1JN,GRANT
"Department for Business, Energy and Industrial Strategy","Department for Business, Energy and Industrial Strategy",08/12/2021 00:00,Current Grants To Local Government,"Science, Innovation And Growth - National Weights And Measures Laboratory",Fareham Borough Council,418909,18600.00,"New Burdens 5 - Post Payment Assurance, Reconciliation And Debt Recovery-current Grants To Local Government",PO16 7AZ,GRANT
"Department for Business, Energy and Industrial Strategy","Department for Business, Energy and Industrial Strategy",08/12/2021 00:00,Current Grants To Local Government,"Science, Innovation And Growth - National Weights And Measures Laboratory",Fenland District Council,418911,18600.00,"New Burdens 5 - Post Payment Assurance, Reconciliation And Debt Recovery-current Grants To Local Government",PE15 8NQ,WGA ONLY
"Department for Business, Energy and Industrial Strategy","Department for Business, Energy and Industrial Strategy",08/12/2021 00:00,Current Grants To Local Government,"Science, Innovation And Growth - National Weights And Measures Laboratory",Folkestone And Hythe District Council,418914,18600.00,"New Burdens 5 - Post Payment Assurance, Reconciliation And Debt Recovery-current Grants To Local Government",CT20 2QY,GRANT
"Department for Business, Energy and Industrial Strategy","Department for Business, Energy and Industrial Strategy",08/12/2021 00:00,Current Grants To Local Government,"Science, Innovation And Growth - National Weights And Measures Laboratory",Forest Of Dean District Council,418915,18600.00,"New Burdens 5 - Post Payment Assurance, Reconciliation And Debt Recovery-current Grants To Local Government",GL16 8HG,GRANT
"Department for Business, Energy and Industrial Strategy","Department for Business, Energy and Industrial Strategy",08/12/2021 00:00,Current Grants To Local Government,"Science, Innovation And Growth - National Weights And Measures Laboratory",Fylde Borough Council,418917,18600.00,"New Burdens 5 - Post Payment Assurance, Reconciliation And Debt Recovery-current Grants To Local Government",FY8 1LW,GRANT
"Department for Business, Energy and Industrial Strategy","Department for Business, Energy and Industrial Strategy",08/12/2021 00:00,Current Grants To Local Government,"Science, Innovation And Growth - National Weights And Measures Laboratory",Gateshead Council,418919,22140.00,"New Burdens 5 - Post Payment Assurance, Reconciliation And Debt Recovery-current Grants To Local Government",NE8 1HH,GRANT
"Department for Business, Energy and Industrial Strategy","Department for Business, Energy and Industrial Strategy",08/12/2021 00:00,Current Grants To Local Government,"Science, Innovation And Growth - National Weights And Measures Laboratory",Gedling Borough Council,418920,18600.00,"New Burdens 5 - Post Payment Assurance, Reconciliation And Debt Recovery-current Grants To Local Government",NG5 6LU,GRANT
"Department for Business, Energy and Industrial Strategy","Department for Business, Energy and Industrial Strategy",08/12/2021 00:00,Current Grants To Local Government,"Science, Innovation And Growth - National Weights And Measures Laboratory",Gloucester City Council,418922,18600.00,"New Burdens 5 - Post Payment Assurance, Reconciliation And Debt Recovery-current Grants To Local Government",GL1 9FW,GRANT
"Department for Business, Energy and Industrial Strategy","Department for Business, Energy and Industrial Strategy",08/12/2021 00:00,Current Grants To Local Government,"Science, Innovation And Growth - National Weights And Measures Laboratory",Gosport Borough Council,418923,18600.00,"New Burdens 5 - Post Payment Assurance, Reconciliation And Debt Recovery-current Grants To Local Government",PO12 1EB,GRANT
"Department for Business, Energy and Industrial Strategy","Department for Business, Energy and Industrial Strategy",08/12/2021 00:00,Current Grants To Local Government,"Science, Innovation And Growth - National Weights And Measures Laboratory",London Borough Of Newham,418930,25620.00,"New Burdens 5 - Post Payment Assurance, Reconciliation And Debt Recovery-current Grants To Local Government",E16 2QU,GRANT
"Department for Business, Energy and Industrial Strategy","Department for Business, Energy and Industrial Strategy",08/12/2021 00:00,Current Grants To Local Government,"Science, Innovation And Growth - National Weights And Measures Laboratory",East Staffordshire Borough Council,418931,18600.00,"New Burdens 5 - Post Payment Assurance, Reconciliation And Debt Recovery-current Grants To Local Government",DE14 2EB,GRANT
"Department for Business, Energy and Industrial Strategy","Department for Business, Energy and Industrial Strategy",08/12/2021 00:00,Current Grants To Local Government,"Science, Innovation And Growth - National Weights And Measures Laboratory",London Borough Of Richmond Upon Thames,418933,25620.00,"New Burdens 5 - Post Payment Assurance, Reconciliation And Debt Recovery-current Grants To Local Government",BA4 5BT,VENDOR
"Department for Business, Energy and Industrial Strategy","Department for Business, Energy and Industrial Strategy",08/12/2021 00:00,Current Grants To Local Government,"Science, Innovation And Growth - National Weights And Measures Laboratory",East Hampshire District Council,418934,18600.00,"New Burdens 5 - Post Payment Assurance, Reconciliation And Debt Recovery-current Grants To Local Government",GU31 4EX,GRANT
"Department for Business, Energy and Industrial Strategy","Department for Business, Energy and Industrial Strategy",08/12/2021 00:00,Current Grants To Local Government,"Science, Innovation And Growth - National Weights And Measures Laboratory",Great Yarmouth Borough Council,418935,22140.00,"New Burdens 5 - Post Payment Assurance, Reconciliation And Debt Recovery-current Grants To Local Government",NR30 2QF,GRANT
"Department for Business, Energy and Industrial Strategy","Department for Business, Energy and Industrial Strategy",08/12/2021 00:00,Current Grants To Local Government,"Science, Innovation And Growth - National Weights And Measures Laboratory",London Borough Of Southwark,418936,25620.00,"New Burdens 5 - Post Payment Assurance, Reconciliation And Debt Recovery-current Grants To Local Government",SE1 2TZ,GRANT
"Department for Business, Energy and Industrial Strategy","Department for Business, Energy and Industrial Strategy",08/12/2021 00:00,Current Grants To Local Government,"Science, Innovation And Growth - National Weights And Measures Laboratory",Guildford Borough Council,418937,22140.00,"New Burdens 5 - Post Payment Assurance, Reconciliation And Debt Recovery-current Grants To Local Government",GU2 4BB,WGA ONLY
"Department for Business, Energy and Industrial Strategy","Department for Business, Energy and Industrial Strategy",08/12/2021 00:00,Current Grants To Local Government,"Science, Innovation And Growth - National Weights And Measures Laboratory",Halton Borough Council,418938,18600.00,"New Burdens 5 - Post Payment Assurance, Reconciliation And Debt Recovery-current Grants To Local Government",WA8 7QF,GRANT
"Department for Business, Energy and Industrial Strategy","Department for Business, Energy and Industrial Strategy",08/12/2021 00:00,Current Grants To Local Government,"Science, Innovation And Growth - National Weights And Measures Laboratory",Hambleton District Council,418939,18600.00,"New Burdens 5 - Post Payment Assurance, Reconciliation And Debt Recovery-current Grants To Local Government",DL6 2UU,GRANT
"Department for Business, Energy and Industrial Strategy","Department for Business, Energy and Industrial Strategy",08/12/2021 00:00,Current Grants To Local Government,"Science, Innovation And Growth - National Weights And Measures Laboratory",Harborough District Council,418941,18600.00,"New Burdens 5 - Post Payment Assurance, Reconciliation And Debt Recovery-current Grants To Local Government",LE16 7AG,GRANT
"Department for Business, Energy and Industrial Strategy","Department for Business, Energy and Industrial Strategy",08/12/2021 00:00,Current Grants To Local Government,"Science, Innovation And Growth - National Weights And Measures Laboratory",Harlow District Council,418942,18600.00,"New Burdens 5 - Post Payment Assurance, Reconciliation And Debt Recovery-current Grants To Local Government",CM20 1WG,GRANT
"Department for Business, Energy and Industrial Strategy","Department for Business, Energy and Industrial Strategy",08/12/2021 00:00,Current Grants To Local Government,"Science, Innovation And Growth - National Weights And Measures Laboratory",London Borough Of Sutton,418943,22140.00,"New Burdens 5 - Post Payment Assurance, Reconciliation And Debt Recovery-current Grants To Local Government",SM11EA,GRANT
"Department for Business, Energy and Industrial Strategy","Department for Business, Energy and Industrial Strategy",08/12/2021 00:00,Current Grants To Local Government,"Science, Innovation And Growth - National Weights And Measures Laboratory",Harrogate Borough Council,418944,22140.00,"New Burdens 5 - Post Payment Assurance, Reconciliation And Debt Recovery-current Grants To Local Government",HG1 2AE,WGA ONLY
"Department for Business, Energy and Industrial Strategy","Department for Business, Energy and Industrial Strategy",08/12/2021 00:00,Current Grants To Local Government,"Science, Innovation And Growth - National Weights And Measures Laboratory",London Borough Of Tower Hamlets,418945,29160.00,"New Burdens 5 - Post Payment Assurance, Reconciliation And Debt Recovery-current Grants To Local Government",E14 2BG,GRANT
"Department for Business, Energy and Industrial Strategy","Department for Business, Energy and Industrial Strategy",08/12/2021 00:00,Current Grants To Local Government,"Science, Innovation And Growth - National Weights And Measures Laboratory",Hart District Council,418946,18600.00,"New Burdens 5 - Post Payment Assurance, Reconciliation And Debt Recovery-current Grants To Local Government",GU51 4AE,GRANT
"Department for Business, Energy and Industrial Strategy","Department for Business, Energy and Industrial Strategy",08/12/2021 00:00,Current Grants To Local Government,"Science, Innovation And Growth - National Weights And Measures Laboratory",Hartlepool Borough Council,418947,18600.00,"New Burdens 5 - Post Payment Assurance, Reconciliation And Debt Recovery-current Grants To Local Government",TS24 8AY,GRANT
"Department for Business, Energy and Industrial Strategy","Department for Business, Energy and Industrial Strategy",08/12/2021 00:00,Current Grants To Local Government,"Science, Innovation And Growth - National Weights And Measures Laboratory",Gravesham Borough Council,418948,18600.00,"New Burdens 5 - Post Payment Assurance, Reconciliation And Debt Recovery-current Grants To Local Government",DA12 1AU,GRANT
"Department for Business, Energy and Industrial Strategy","Department for Business, Energy and Industrial Strategy",08/12/2021 00:00,Current Grants To Local Government,"Science, Innovation And Growth - National Weights And Measures Laboratory",Hastings Borough Council,418949,18600.00,"New Burdens 5 - Post Payment Assurance, Reconciliation And Debt Recovery-current Grants To Local Government",TN34 3UY,GRANT
"Department for Business, Energy and Industrial Strategy","Department for Business, Energy and Industrial Strategy",08/12/2021 00:00,Current Grants To Local Government,"Science, Innovation And Growth - National Weights And Measures Laboratory",Wandsworth Borough Council,418950,25620.00,"New Burdens 5 - Post Payment Assurance, Reconciliation And Debt Recovery-current Grants To Local Government",SW18 2PU,GRANT
"Department for Business, Energy and Industrial Strategy","Department for Business, Energy and Industrial Strategy",08/12/2021 00:00,Current Grants To Local Government,"Science, Innovation And Growth - National Weights And Measures Laboratory",Havant Borough Council,418951,18600.00,"New Burdens 5 - Post Payment Assurance, Reconciliation And Debt Recovery-current Grants To Local Government",PO9 2AX,GRANT
"Department for Business, Energy and Industrial Strategy","Department for Business, Energy and Industrial Strategy",08/12/2021 00:00,Current Grants To Local Government,"Science, Innovation And Growth - National Weights And Measures Laboratory",Herefordshire Council,418952,25620.00,"New Burdens 5 - Post Payment Assurance, Reconciliation And Debt Recovery-current Grants To Local Government",HR4 0XH,WGA ONLY
"Department for Business, Energy and Industrial Strategy","Department for Business, Energy and Industrial Strategy",08/12/2021 00:00,Current Grants To Local Government,"Science, Innovation And Growth - National Weights And Measures Laboratory",Luton Borough Council,418953,22140.00,"New Burdens 5 - Post Payment Assurance, Reconciliation And Debt Recovery-current Grants To Local Government",LU1 2BQ,GRANT
"Department for Business, Energy and Industrial Strategy","Department for Business, Energy and Industrial Strategy",08/12/2021 00:00,Current Grants To Local Government,"Science, Innovation And Growth - National Weights And Measures Laboratory",Hertsmere Borough Council,418954,18600.00,"New Burdens 5 - Post Payment Assurance, Reconciliation And Debt Recovery-current Grants To Local Government",WD6 1WA,GRANT
"Department for Business, Energy and Industrial Strategy","Department for Business, Energy and Industrial Strategy",08/12/2021 00:00,Current Grants To Local Government,"Science, Innovation And Growth - National Weights And Measures Laboratory",Maidstone Borough Council,418955,22140.00,"New Burdens 5 - Post Payment Assurance, Reconciliation And Debt Recovery-current Grants To Local Government",ME15 6JQ,GRANT
"Department for Business, Energy and Industrial Strategy","Department for Business, Energy and Industrial Strategy",08/12/2021 00:00,Current Grants To Local Government,"Science, Innovation And Growth - National Weights And Measures Laboratory",High Peak Borough Council,418956,18600.00,"New Burdens 5 - Post Payment Assurance, Reconciliation And Debt Recovery-current Grants To Local Government",SK17 6EL,GRANT
"Department for Business, Energy and Industrial Strategy","Department for Business, Energy and Industrial Strategy",08/12/2021 00:00,Current Grants To Local Government,"Science, Innovation And Growth - National Weights And Measures Laboratory",Hinckley And Bosworth Borough Council,418957,18600.00,"New Burdens 5 - Post Payment Assurance, Reconciliation And Debt Recovery-current Grants To Local Government",LE10 0FR,GRANT
"Department for Business, Energy and Industrial Strategy","Department for Business, Energy and Industrial Strategy",08/12/2021 00:00,Current Grants To Local Government,"Science, Innovation And Growth - National Weights And Measures Laboratory",Borough Council Kings Lynn And West Norfolk,418958,22140.00,"New Burdens 5 - Post Payment Assurance, Reconciliation And Debt Recovery-current Grants To Local Government",PE30 1EX,GRANT
"Department for Business, Energy and Industrial Strategy","Department for Business, Energy and Industrial Strategy",08/12/2021 00:00,Current Grants To Local Government,"Science, Innovation And Growth - National Weights And Measures Laboratory",Malvern Hills District Council,418959,18600.00,"New Burdens 5 - Post Payment Assurance, Reconciliation And Debt Recovery-current Grants To Local Government",WR14 3AF,GRANT
"Department for Business, Energy and Industrial Strategy","Department for Business, Energy and Industrial Strategy",08/12/2021 00:00,Current Grants To Local Government,"Science, Innovation And Growth - National Weights And Measures Laboratory",Horsham District Council,418960,18600.00,"New Burdens 5 - Post Payment Assurance, Reconciliation And Debt Recovery-current Grants To Local Government",RH12 1RL,VENDOR
"Department for Business, Energy and Industrial Strategy","Department for Business, Energy and Industrial Strategy",08/12/2021 00:00,Current Grants To Local Government,"Science, Innovation And Growth - National Weights And Measures Laboratory",Kingston Upon Hull City Council,418961,25620.00,"New Burdens 5 - Post Payment Assurance, Reconciliation And Debt Recovery-current Grants To Local Government",HU1B 2AA,WGA ONLY
"Department for Business, Energy and Industrial Strategy","Department for Business, Energy and Industrial Strategy",08/12/2021 00:00,Current Grants To Local Government,"Science, Innovation And Growth - National Weights And Measures Laboratory",Huntingdonshire District Council,418962,18600.00,"New Burdens 5 - Post Payment Assurance, Reconciliation And Debt Recovery-current Grants To Local Government",PE29 3TN,GRANT
"Department for Business, Energy and Industrial Strategy","Department for Business, Energy and Industrial Strategy",08/12/2021 00:00,Current Grants To Local Government,"Science, Innovation And Growth - National Weights And Measures Laboratory",Manchester City Council,418963,32700.00,"New Burdens 5 - Post Payment Assurance, Reconciliation And Debt Recovery-current Grants To Local Government",M60 2LA,WGA ONLY
"Department for Business, Energy and Industrial Strategy","Department for Business, Energy and Industrial Strategy",08/12/2021 00:00,Current Grants To Local Government,"Science, Innovation And Growth - National Weights And Measures Laboratory",Mansfield District Council,418964,18600.00,"New Burdens 5 - Post Payment Assurance, Reconciliation And Debt Recovery-current Grants To Local Government",NG19 7BH,WGA ONLY
"Department for Business, Energy and Industrial Strategy","Department for Business, Energy and Industrial Strategy",08/12/2021 00:00,Current Grants To Local Government,"Science, Innovation And Growth - National Weights And Measures Laboratory",Medway Council,418965,22140.00,"New Burdens 5 - Post Payment Assurance, Reconciliation And Debt Recovery-current Grants To Local Government",ME4 4TR,WGA ONLY
"Department for Business, Energy and Industrial Strategy","Department for Business, Energy and Industrial Strategy",08/12/2021 00:00,Current Grants To Local Government,"Science, Innovation And Growth - National Weights And Measures Laboratory",Bromsgrove District Council,418966,18600.00,"New Burdens 5 - Post Payment Assurance, Reconciliation And Debt Recovery-current Grants To Local Government",B61 8DA,GRANT
"Department for Business, Energy and Industrial Strategy","Department for Business, Energy and Industrial Strategy",08/12/2021 00:00,Current Grants To Local Government,"Science, Innovation And Growth - National Weights And Measures Laboratory",Melton Borough Council,418967,18600.00,"New Burdens 5 - Post Payment Assurance, Reconciliation And Debt Recovery-current Grants To Local Government",LE13 1GH,GRANT
"Department for Business, Energy and Industrial Strategy","Department for Business, Energy and Industrial Strategy",08/12/2021 00:00,Current Grants To Local Government,"Science, Innovation And Growth - National Weights And Measures Laboratory",Ipswich Borough Council,418968,18600.00,"New Burdens 5 - Post Payment Assurance, Reconciliation And Debt Recovery-current Grants To Local Government",IP1 2DE,GRANT
"Department for Business, Energy and Industrial Strategy","Department for Business, Energy and Industrial Strategy",08/12/2021 00:00,Current Grants To Local Government,"Science, Innovation And Growth - National Weights And Measures Laboratory",Hyndburn Borough Council,418969,18600.00,"New Burdens 5 - Post Payment Assurance, Reconciliation And Debt Recovery-current Grants To Local Government",BB5 0PF,GRANT
"Department for Business, Energy and Industrial Strategy","Department for Business, Energy and Industrial Strategy",08/12/2021 00:00,Current Grants To Local Government,"Science, Innovation And Growth - National Weights And Measures Laboratory",Isle Of Wight Council,418970,25620.00,"New Burdens 5 - Post Payment Assurance, Reconciliation And Debt Recovery-current Grants To Local Government",PO30 1UD,GRANT
"Department for Business, Energy and Industrial Strategy","Department for Business, Energy and Industrial Strategy",08/12/2021 00:00,Current Grants To Local Government,"Science, Innovation And Growth - National Weights And Measures Laboratory",Mid Devon District Council,418971,18600.00,"New Burdens 5 - Post Payment Assurance, Reconciliation And Debt Recovery-current Grants To Local Government",EX16 6PP,GRANT
"Department for Business, Energy and Industrial Strategy","Department for Business, Energy and Industrial Strategy",08/12/2021 00:00,Current Grants To Local Government,"Science, Innovation And Growth - National Weights And Measures Laboratory",Kirklees Metropolitan Council,418972,29160.00,"New Burdens 5 - Post Payment Assurance, Reconciliation And Debt Recovery-current Grants To Local Government",HD1 2TA,WGA ONLY
"Department for Business, Energy and Industrial Strategy","Department for Business, Energy and Industrial Strategy",08/12/2021 00:00,Current Grants To Local Government,"Science, Innovation And Growth - National Weights And Measures Laboratory",Mid Suffolk District Council,418973,18600.00,"New Burdens 5 - Post Payment Assurance, Reconciliation And Debt Recovery-current Grants To Local Government",IP1 2BX,GRANT
"Department for Business, Energy and Industrial Strategy","Department for Business, Energy and Industrial Strategy",08/12/2021 00:00,Current Grants To Local Government,"Science, Innovation And Growth - National Weights And Measures Laboratory",Mid Sussex District Council,418974,18600.00,"New Burdens 5 - Post Payment Assurance, Reconciliation And Debt Recovery-current Grants To Local Government",RH16 1SS,GRANT
"Department for Business, Energy and Industrial Strategy","Department for Business, Energy and Industrial Strategy",08/12/2021 00:00,Current Grants To Local Government,"Science, Innovation And Growth - National Weights And Measures Laboratory",Knowsley Council,418975,18600.00,"New Burdens 5 - Post Payment Assurance, Reconciliation And Debt Recovery-current Grants To Local Government",L36 9YU,GRANT
"Department for Business, Energy and Industrial Strategy","Department for Business, Energy and Industrial Strategy",08/12/2021 00:00,Current Grants To Local Government,"Science, Innovation And Growth - National Weights And Measures Laboratory",London Borough Of Bromley,418976,25620.00,"New Burdens 5 - Post Payment Assurance, Reconciliation And Debt Recovery-current Grants To Local Government",BR1 3UH,GRANT
"Department for Business, Energy and Industrial Strategy","Department for Business, Energy and Industrial Strategy",08/12/2021 00:00,Current Grants To Local Government,"Science, Innovation And Growth - National Weights And Measures Laboratory",Lancaster City Council,418977,22140.00,"New Burdens 5 - Post Payment Assurance, Reconciliation And Debt Recovery-current Grants To Local Government",LA1 1PJ,WGA ONLY
"Department for Business, Energy and Industrial Strategy","Department for Business, Energy and Industrial Strategy",08/12/2021 00:00,Current Grants To Local Government,"Science, Innovation And Growth - National Weights And Measures Laboratory",Milton Keynes Council,418978,22140.00,"New Burdens 5 - Post Payment Assurance, Reconciliation And Debt Recovery-current Grants To Local Government",MK9 3EJ,GRANT
"Department for Business, Energy and Industrial Strategy","Department for Business, Energy and Industrial Strategy",08/12/2021 00:00,Current Grants To Local Government,"Science, Innovation And Growth - National Weights And Measures Laboratory",Leeds City Council,418979,32700.00,"New Burdens 5 - Post Payment Assurance, Reconciliation And Debt Recovery-current Grants To Local Government",LS1 1UR,GRANT
"Department for Business, Energy and Industrial Strategy","Department for Business, Energy and Industrial Strategy",08/12/2021 00:00,Current Grants To Local Government,"Science, Innovation And Growth - National Weights And Measures Laboratory",Mole Valley District Council,418981,18600.00,"New Burdens 5 - Post Payment Assurance, Reconciliation And Debt Recovery-current Grants To Local Government",RH4 1SJ,GRANT
"Department for Business, Energy and Industrial Strategy","Department for Business, Energy and Industrial Strategy",08/12/2021 00:00,Current Grants To Local Government,"Science, Innovation And Growth - National Weights And Measures Laboratory",New Forest District Council,418982,22140.00,"New Burdens 5 - Post Payment Assurance, Reconciliation And Debt Recovery-current Grants To Local Government",SO43 7PA,GRANT
"Department for Business, Energy and Industrial Strategy","Department for Business, Energy and Industrial Strategy",08/12/2021 00:00,Current Grants To Local Government,"Science, Innovation And Growth - National Weights And Measures Laboratory",Leicester City Council,418983,29160.00,"New Burdens 5 - Post Payment Assurance, Reconciliation And Debt Recovery-current Grants To Local Government",LE1 1FZ,WGA ONLY
"Department for Business, Energy and Industrial Strategy","Department for Business, Energy and Industrial Strategy",08/12/2021 00:00,Current Grants To Local Government,"Science, Innovation And Growth - National Weights And Measures Laboratory",Newark And Sherwood District Council,418984,18600.00,"New Burdens 5 - Post Payment Assurance, Reconciliation And Debt Recovery-current Grants To Local Government",NG24 1BY,GRANT
"Department for Business, Energy and Industrial Strategy","Department for Business, Energy and Industrial Strategy",08/12/2021 00:00,Current Grants To Local Government,"Science, Innovation And Growth - National Weights And Measures Laboratory",Lewes District Council,418985,18600.00,"New Burdens 5 - Post Payment Assurance, Reconciliation And Debt Recovery-current Grants To Local Government",BN7 1AB,GRANT
"Department for Business, Energy and Industrial Strategy","Department for Business, Energy and Industrial Strategy",08/12/2021 00:00,Current Grants To Local Government,"Science, Innovation And Growth - National Weights And Measures Laboratory",Newcastle City Council,418986,25620.00,"New Burdens 5 - Post Payment Assurance, Reconciliation And Debt Recovery-current Grants To Local Government",NE1 8QH,WGA ONLY
"Department for Business, Energy and Industrial Strategy","Department for Business, Energy and Industrial Strategy",08/12/2021 00:00,Current Grants To Local Government,"Science, Innovation And Growth - National Weights And Measures Laboratory",Lichfield District Council,418987,18600.00,"New Burdens 5 - Post Payment Assurance, Reconciliation And Debt Recovery-current Grants To Local Government",WS13 6YY,GRANT
"Department for Business, Energy and Industrial Strategy","Department for Business, Energy and Industrial Strategy",08/12/2021 00:00,Current Grants To Local Government,"Science, Innovation And Growth - National Weights And Measures Laboratory",Newcastle Under Lyme Borough Council,418988,18600.00,"New Burdens 5 - Post Payment Assurance, Reconciliation And Debt Recovery-current Grants To Local Government",ST5 1BL,GRANT
"Department for Business, Energy and Industrial Strategy","Department for Business, Energy and Industrial Strategy",08/12/2021 00:00,Current Grants To Local Government,"Science, Innovation And Growth - National Weights And Measures Laboratory",Liverpool City Council,418989,29160.00,"New Burdens 5 - Post Payment Assurance, Reconciliation And Debt Recovery-current Grants To Local Government",L3 1AH,WGA ONLY
"Department for Business, Energy and Industrial Strategy","Department for Business, Energy and Industrial Strategy",08/12/2021 00:00,Current Grants To Local Government,"Science, Innovation And Growth - National Weights And Measures Laboratory",North Devon District Council,418991,25620.00,"New Burdens 5 - Post Payment Assurance, Reconciliation And Debt Recovery-current Grants To Local Government",EX31 1DG,GRANT
"Department for Business, Energy and Industrial Strategy","Department for Business, Energy and Industrial Strategy",08/12/2021 00:00,Current Grants To Local Government,"Science, Innovation And Growth - National Weights And Measures Laboratory",London Borough Of Barking And Dagenham,418993,18600.00,"New Burdens 5 - Post Payment Assurance, Reconciliation And Debt Recovery-current Grants To Local Government",IG11 7LU,GRANT
"Department for Business, Energy and Industrial Strategy","Department for Business, Energy and Industrial Strategy",08/12/2021 00:00,Current Grants To Local Government,"Science, Innovation And Growth - National Weights And Measures Laboratory",North East Derbyshire District Council,418994,18600.00,"New Burdens 5 - Post Payment Assurance, Reconciliation And Debt Recovery-current Grants To Local Government",S42 6NG,GRANT
"Department for Business, Energy and Industrial Strategy","Department for Business, Energy and Industrial Strategy",08/12/2021 00:00,Current Grants To Local Government,"Science, Innovation And Growth - National Weights And Measures Laboratory",London Borough Of Barnet,418995,25620.00,"New Burdens 5 - Post Payment Assurance, Reconciliation And Debt Recovery-current Grants To Local Government",NW9 4EW,GRANT
"Department for Business, Energy and Industrial Strategy","Department for Business, Energy and Industrial Strategy",08/12/2021 00:00,Current Grants To Local Government,"Science, Innovation And Growth - National Weights And Measures Laboratory",North East Lincolnshire Council,418996,22140.00,"New Burdens 5 - Post Payment Assurance, Reconciliation And Debt Recovery-current Grants To Local Government",DN31 1HU,GRANT
"Department for Business, Energy and Industrial Strategy","Department for Business, Energy and Industrial Strategy",08/12/2021 00:00,Current Grants To Local Government,"Science, Innovation And Growth - National Weights And Measures Laboratory",London Borough Of Bexley,418997,22140.00,"New Burdens 5 - Post Payment Assurance, Reconciliation And Debt Recovery-current Grants To Local Government",DA6 7AT,GRANT
"Department for Business, Energy and Industrial Strategy","Department for Business, Energy and Industrial Strategy",08/12/2021 00:00,Current Grants To Local Government,"Science, Innovation And Growth - National Weights And Measures Laboratory",North Hertfordshire District Council,418998,18600.00,"New Burdens 5 - Post Payment Assurance, Reconciliation And Debt Recovery-current Grants To Local Government",SG6 3JF,GRANT
"Department for Business, Energy and Industrial Strategy","Department for Business, Energy and Industrial Strategy",08/12/2021 00:00,Current Grants To Local Government,"Science, Innovation And Growth - National Weights And Measures Laboratory",North Kesteven District Council,418999,18600.00,"New Burdens 5 - Post Payment Assurance, Reconciliation And Debt Recovery-current Grants To Local Government",NG34 7EF,GRANT
"Department for Business, Energy and Industrial Strategy","Department for Business, Energy and Industrial Strategy",08/12/2021 00:00,Current Grants To Local Government,"Science, Innovation And Growth - National Weights And Measures Laboratory",London Borough Of Brent,419000,25620.00,"New Burdens 5 - Post Payment Assurance, Reconciliation And Debt Recovery-current Grants To Local Government",HA9 0FJ,GRANT
"Department for Business, Energy and Industrial Strategy","Department for Business, Energy and Industrial Strategy",08/12/2021 00:00,Current Grants To Local Government,"Science, Innovation And Growth - National Weights And Measures Laboratory",North Lincolnshire Council,419001,22140.00,"New Burdens 5 - Post Payment Assurance, Reconciliation And Debt Recovery-current Grants To Local Government",DN15 6NL,WGA ONLY
"Department for Business, Energy and Industrial Strategy","Department for Business, Energy and Industrial Strategy",08/12/2021 00:00,Current Grants To Local Government,"Science, Innovation And Growth - National Weights And Measures Laboratory",Burnley Borough Council,419002,18600.00,"New Burdens 5 - Post Payment Assurance, Reconciliation And Debt Recovery-current Grants To Local Government",BB11 9SA,GRANT
"Department for Business, Energy and Industrial Strategy","Department for Business, Energy and Industrial Strategy",08/12/2021 00:00,Current Grants To Local Government,"Science, Innovation And Growth - National Weights And Measures Laboratory",North Norfolk District Council,419003,25620.00,"New Burdens 5 - Post Payment Assurance, Reconciliation And Debt Recovery-current Grants To Local Government",NR27 9EN,GRANT
"Department for Business, Energy and Industrial Strategy","Department for Business, Energy and Industrial Strategy",08/12/2021 00:00,Current Grants To Local Government,"Science, Innovation And Growth - National Weights And Measures Laboratory",London Borough Of Camden,419004,32700.00,"New Burdens 5 - Post Payment Assurance, Reconciliation And Debt Recovery-current Grants To Local Government",WC1H 9JE,WGA ONLY
"Department for Business, Energy and Industrial Strategy","Department for Business, Energy and Industrial Strategy",08/12/2021 00:00,Current Grants To Local Government,"Science, Innovation And Growth - National Weights And Measures Laboratory",North Northamptonshire Council,419005,25620.00,"New Burdens 5 - Post Payment Assurance, Reconciliation And Debt Recovery-current Grants To Local Government",NN16 8TL,GRANT
"Department for Business, Energy and Industrial Strategy","Department for Business, Energy and Industrial Strategy",08/12/2021 00:00,Current Grants To Local Government,"Science, Innovation And Growth - National Weights And Measures Laboratory",Croydon Council,419006,25620.00,"New Burdens 5 - Post Payment Assurance, Reconciliation And Debt Recovery-current Grants To Local Government",CR0 1EA,GRANT
"Department for Business, Energy and Industrial Strategy","Department for Business, Energy and Industrial Strategy",08/12/2021 00:00,Current Grants To Local Government,"Science, Innovation And Growth - National Weights And Measures Laboratory",North Somerset Council,419007,22140.00,"New Burdens 5 - Post Payment Assurance, Reconciliation And Debt Recovery-current Grants To Local Government",BS23 1UJ,GRANT
"Department for Business, Energy and Industrial Strategy","Department for Business, Energy and Industrial Strategy",08/12/2021 00:00,Current Grants To Local Government,"Science, Innovation And Growth - National Weights And Measures Laboratory",London Borough Of Ealing,419008,25620.00,"New Burdens 5 - Post Payment Assurance, Reconciliation And Debt Recovery-current Grants To Local Government",W5 2HL,GRANT
"Department for Business, Energy and Industrial Strategy","Department for Business, Energy and Industrial Strategy",08/12/2021 00:00,Current Grants To Local Government,"Science, Innovation And Growth - National Weights And Measures Laboratory",North Tyneside Council,419009,22140.00,"New Burdens 5 - Post Payment Assurance, Reconciliation And Debt Recovery-current Grants To Local Government",NE27 0BY,GRANT
"Department for Business, Energy and Industrial Strategy","Department for Business, Energy and Industrial Strategy",08/12/2021 00:00,Current Grants To Local Government,"Science, Innovation And Growth - National Weights And Measures Laboratory",Cannock Chase Council,419010,18600.00,"New Burdens 5 - Post Payment Assurance, Reconciliation And Debt Recovery-current Grants To Local Government",WS11 1BG,GRANT
"Department for Business, Energy and Industrial Strategy","Department for Business, Energy and Industrial Strategy",08/12/2021 00:00,Current Grants To Local Government,"Science, Innovation And Growth - National Weights And Measures Laboratory",North Warwickshire Borough Council,419011,18600.00,"New Burdens 5 - Post Payment Assurance, Reconciliation And Debt Recovery-current Grants To Local Government",CV9 1DE,GRANT
"Department for Business, Energy and Industrial Strategy","Department for Business, Energy and Industrial Strategy",08/12/2021 00:00,Current Grants To Local Government,"Science, Innovation And Growth - National Weights And Measures Laboratory",Royal Borough Of Greenwich,419012,22140.00,"New Burdens 5 - Post Payment Assurance, Reconciliation And Debt Recovery-current Grants To Local Government",SE18 6HQ,GRANT
"Department for Business, Energy and Industrial Strategy","Department for Business, Energy and Industrial Strategy",08/12/2021 00:00,Current Grants To Local Government,"Science, Innovation And Growth - National Weights And Measures Laboratory",North West Leicestershire District Council,419013,18600.00,"New Burdens 5 - Post Payment Assurance, Reconciliation And Debt Recovery-current Grants To Local Government",LE67 3FJ,VENDOR
"Department for Business, Energy and Industrial Strategy","Department for Business, Energy and Industrial Strategy",08/12/2021 00:00,Current Grants To Local Government,"Science, Innovation And Growth - National Weights And Measures Laboratory",London Borough Of Hackney,419014,25620.00,"New Burdens 5 - Post Payment Assurance, Reconciliation And Debt Recovery-current Grants To Local Government",E8 1DY,VENDOR
"Department for Business, Energy and Industrial Strategy","Department for Business, Energy and Industrial Strategy",08/12/2021 00:00,Current Grants To Local Government,"Science, Innovation And Growth - National Weights And Measures Laboratory",Northumberland County Council,419015,29160.00,"New Burdens 5 - Post Payment Assurance, Reconciliation And Debt Recovery-current Grants To Local Government",NE61 2EF,GRANT
"Department for Business, Energy and Industrial Strategy","Department for Business, Energy and Industrial Strategy",08/12/2021 00:00,Current Grants To Local Government,"Science, Innovation And Growth - National Weights And Measures Laboratory",London Borough Of Hammersmith And Fulham,419016,25620.00,"New Burdens 5 - Post Payment Assurance, Reconciliation And Debt Recovery-current Grants To Local Government",W6 9JU,GRANT
"Department for Business, Energy and Industrial Strategy","Department for Business, Energy and Industrial Strategy",08/12/2021 00:00,Current Grants To Local Government,"Science, Innovation And Growth - National Weights And Measures Laboratory",Norwich City Council,419018,22140.00,"New Burdens 5 - Post Payment Assurance, Reconciliation And Debt Recovery-current Grants To Local Government",NR2 1NH,GRANT
"Department for Business, Energy and Industrial Strategy","Department for Business, Energy and Industrial Strategy",08/12/2021 00:00,Current Grants To Local Government,"Science, Innovation And Growth - National Weights And Measures Laboratory",London Borough Of Haringey,419019,25620.00,"New Burdens 5 - Post Payment Assurance, Reconciliation And Debt Recovery-current Grants To Local Government",N22 8HQ,GRANT
"Department for Business, Energy and Industrial Strategy","Department for Business, Energy and Industrial Strategy",08/12/2021 00:00,Current Grants To Local Government,"Science, Innovation And Growth - National Weights And Measures Laboratory",Nottingham City Council,419020,25620.00,"New Burdens 5 - Post Payment Assurance, Reconciliation And Debt Recovery-current Grants To Local Government",NG2 3NG,WGA ONLY
"Department for Business, Energy and Industrial Strategy","Department for Business, Energy and Industrial Strategy",08/12/2021 00:00,Current Grants To Local Government,"Science, Innovation And Growth - National Weights And Measures Laboratory",London Borough Of Harrow,419021,22140.00,"New Burdens 5 - Post Payment Assurance, Reconciliation And Debt Recovery-current Grants To Local Government",HA1 2XY,GRANT
"Department for Business, Energy and Industrial Strategy","Department for Business, Energy and Industrial Strategy",08/12/2021 00:00,Current Grants To Local Government,"Science, Innovation And Growth - National Weights And Measures Laboratory",London Borough Of Enfield,419023,25620.00,"New Burdens 5 - Post Payment Assurance, Reconciliation And Debt Recovery-current Grants To Local Government",EN1 3XF,WGA ONLY
"Department for Business, Energy and Industrial Strategy","Department for Business, Energy and Industrial Strategy",08/12/2021 00:00,Current Grants To Local Government,"Science, Innovation And Growth - National Weights And Measures Laboratory",London Borough Of Havering,419024,22140.00,"New Burdens 5 - Post Payment Assurance, Reconciliation And Debt Recovery-current Grants To Local Government",RM1 3BB,GRANT
"Department for Business, Energy and Industrial Strategy","Department for Business, Energy and Industrial Strategy",08/12/2021 00:00,Current Grants To Local Government,"Science, Innovation And Growth - National Weights And Measures Laboratory",Oadby And Wigston Borough Council,419025,18600.00,"New Burdens 5 - Post Payment Assurance, Reconciliation And Debt Recovery-current Grants To Local Government",LE18 2DR,GRANT
"Department for Business, Energy and Industrial Strategy","Department for Business, Energy and Industrial Strategy",08/12/2021 00:00,Current Grants To Local Government,"Science, Innovation And Growth - National Weights And Measures Laboratory",London Borough Of Hillingdon,419026,25620.00,"New Burdens 5 - Post Payment Assurance, Reconciliation And Debt Recovery-current Grants To Local Government",UB8 1UW,VENDOR
"Department for Business, Energy and Industrial Strategy","Department for Business, Energy and Industrial Strategy",08/12/2021 00:00,Current Grants To Local Government,"Science, Innovation And Growth - National Weights And Measures Laboratory",Oldham Council,419027,22140.00,"New Burdens 5 - Post Payment Assurance, Reconciliation And Debt Recovery-current Grants To Local Government",OL1 1UT,VENDOR
"Department for Business, Energy and Industrial Strategy","Department for Business, Energy and Industrial Strategy",08/12/2021 00:00,Current Grants To Local Government,"Science, Innovation And Growth - National Weights And Measures Laboratory",Oxford City Council,419028,22140.00,"New Burdens 5 - Post Payment Assurance, Reconciliation And Debt Recovery-current Grants To Local Government",OX1 1DS,GRANT
"Department for Business, Energy and Industrial Strategy","Department for Business, Energy and Industrial Strategy",08/12/2021 00:00,Current Grants To Local Government,"Science, Innovation And Growth - National Weights And Measures Laboratory",Castle Point Borough Council,419030,18600.00,"New Burdens 5 - Post Payment Assurance, Reconciliation And Debt Recovery-current Grants To Local Government",SS7 1TF,GRANT
"Department for Business, Energy and Industrial Strategy","Department for Business, Energy and Industrial Strategy",08/12/2021 00:00,Current Grants To Local Government,"Science, Innovation And Growth - National Weights And Measures Laboratory",Pendle Borough Council,419031,18600.00,"New Burdens 5 - Post Payment Assurance, Reconciliation And Debt Recovery-current Grants To Local Government",BB9 7LG,GRANT
"Department for Business, Energy and Industrial Strategy","Department for Business, Energy and Industrial Strategy",08/12/2021 00:00,Current Grants To Local Government,"Science, Innovation And Growth - National Weights And Measures Laboratory",London Borough Of Islington,419032,29160.00,"New Burdens 5 - Post Payment Assurance, Reconciliation And Debt Recovery-current Grants To Local Government",N7 7EP,GRANT
"Department for Business, Energy and Industrial Strategy","Department for Business, Energy and Industrial Strategy",08/12/2021 00:00,Current Grants To Local Government,"Science, Innovation And Growth - National Weights And Measures Laboratory",Peterborough City Council,419033,22140.00,"New Burdens 5 - Post Payment Assurance, Reconciliation And Debt Recovery-current Grants To Local Government",PE2 8TY,WGA ONLY
"Department for Business, Energy and Industrial Strategy","Department for Business, Energy and Industrial Strategy",08/12/2021 00:00,Current Grants To Local Government,"Science, Innovation And Growth - National Weights And Measures Laboratory",London Borough Of Lambeth,419036,25620.00,"New Burdens 5 - Post Payment Assurance, Reconciliation And Debt Recovery-current Grants To Local Government",SW2 1RW,WGA ONLY
"Department for Business, Energy and Industrial Strategy","Department for Business, Energy and Industrial Strategy",08/12/2021 00:00,Current Grants To Local Government,"Science, Innovation And Growth - National Weights And Measures Laboratory",Plymouth City Council,419037,25620.00,"New Burdens 5 - Post Payment Assurance, Reconciliation And Debt Recovery-current Grants To Local Government",PL1 3BJ,WGA ONLY
"Department for Business, Energy and Industrial Strategy","Department for Business, Energy and Industrial Strategy",08/12/2021 00:00,Current Grants To Local Government,"Science, Innovation And Growth - National Weights And Measures Laboratory",London Borough Of Lewisham,419038,25620.00,"New Burdens 5 - Post Payment Assurance, Reconciliation And Debt Recovery-current Grants To Local Government",SE6 4RU,GRANT
"Department for Business, Energy and Industrial Strategy","Department for Business, Energy and Industrial Strategy",08/12/2021 00:00,Current Grants To Local Government,"Science, Innovation And Growth - National Weights And Measures Laboratory",London Borough Of Hounslow,419039,22140.00,"New Burdens 5 - Post Payment Assurance, Reconciliation And Debt Recovery-current Grants To Local Government",TW3 3EB,VENDOR
"Department for Business, Energy and Industrial Strategy","Department for Business, Energy and Industrial Strategy",08/12/2021 00:00,Current Grants To Local Government,"Science, Innovation And Growth - National Weights And Measures Laboratory",London Borough Of Merton,419040,22140.00,"New Burdens 5 - Post Payment Assurance, Reconciliation And Debt Recovery-current Grants To Local Government",SM4 5DX,GRANT
"Department for Business, Energy and Industrial Strategy","Department for Business, Energy and Industrial Strategy",08/12/2021 00:00,Current Grants To Local Government,"Science, Innovation And Growth - National Weights And Measures Laboratory",Preston City Council,419047,22140.00,"New Burdens 5 - Post Payment Assurance, Reconciliation And Debt Recovery-current Grants To Local Government",PR1 2RL,GRANT
"Department for Business, Energy and Industrial Strategy","Department for Business, Energy and Industrial Strategy",08/12/2021 00:00,Current Grants To Local Government,"Science, Innovation And Growth - National Weights And Measures Laboratory",London Borough Of Redbridge,419048,25620.00,"New Burdens 5 - Post Payment Assurance, Reconciliation And Debt Recovery-current Grants To Local Government",IG1 1NN,GRANT
"Department for Business, Energy and Industrial Strategy","Department for Business, Energy and Industrial Strategy",08/12/2021 00:00,Current Grants To Local Government,"Science, Innovation And Growth - National Weights And Measures Laboratory",Redcar And Cleveland Borough Council,419049,18600.00,"New Burdens 5 - Post Payment Assurance, Reconciliation And Debt Recovery-current Grants To Local Government",TS10 1RT,WGA ONLY
"Department for Business, Energy and Industrial Strategy","Department for Business, Energy and Industrial Strategy",08/12/2021 00:00,Current Grants To Local Government,"Science, Innovation And Growth - National Weights And Measures Laboratory",London Borough Of Waltham Forest,419051,25620.00,"New Burdens 5 - Post Payment Assurance, Reconciliation And Debt Recovery-current Grants To Local Government",E17 4JF,GRANT
"Department for Business, Energy and Industrial Strategy","Department for Business, Energy and Industrial Strategy",08/12/2021 00:00,Current Grants To Local Government,"Science, Innovation And Growth - National Weights And Measures Laboratory",Mendip District Council,419052,22140.00,"New Burdens 5 - Post Payment Assurance, Reconciliation And Debt Recovery-current Grants To Local Government",BA4 5BT,GRANT
"Department for Business, Energy and Industrial Strategy","Department for Business, Energy and Industrial Strategy",08/12/2021 00:00,Current Grants To Local Government,"Science, Innovation And Growth - National Weights And Measures Laboratory",Ribble Valley Borough Council,419053,18600.00,"New Burdens 5 - Post Payment Assurance, Reconciliation And Debt Recovery-current Grants To Local Government",BB7 4TU,GRANT
"Department for Business, Energy and Industrial Strategy","Department for Business, Energy and Industrial Strategy",08/12/2021 00:00,Current Grants To Local Government,"Science, Innovation And Growth - National Weights And Measures Laboratory",Nuneaton And Bedworth Borough Council,419054,18600.00,"New Burdens 5 - Post Payment Assurance, Reconciliation And Debt Recovery-current Grants To Local Government",CV11 5AA,GRANT
"Department for Business, Energy and Industrial Strategy","Department for Business, Energy and Industrial Strategy",08/12/2021 00:00,Current Grants To Local Government,"Science, Innovation And Growth - National Weights And Measures Laboratory",Rochdale Borough Council,419055,22140.00,"New Burdens 5 - Post Payment Assurance, Reconciliation And Debt Recovery-current Grants To Local Government",OL12 1XU,GRANT
"Department for Business, Energy and Industrial Strategy","Department for Business, Energy and Industrial Strategy",08/12/2021 00:00,Current Grants To Local Government,"Science, Innovation And Growth - National Weights And Measures Laboratory",Rochford District Council,419056,18600.00,"New Burdens 5 - Post Payment Assurance, Reconciliation And Debt Recovery-current Grants To Local Government",SS4 1BW,GRANT
"Department for Business, Energy and Industrial Strategy","Department for Business, Energy and Industrial Strategy",08/12/2021 00:00,Current Grants To Local Government,"Science, Innovation And Growth - National Weights And Measures Laboratory",Rossendale Borough Council,419057,18600.00,"New Burdens 5 - Post Payment Assurance, Reconciliation And Debt Recovery-current Grants To Local Government",OL13 0BB,GRANT
"Department for Business, Energy and Industrial Strategy","Department for Business, Energy and Industrial Strategy",08/12/2021 00:00,Current Grants To Local Government,"Science, Innovation And Growth - National Weights And Measures Laboratory",Rother District Council,419058,22140.00,"New Burdens 5 - Post Payment Assurance, Reconciliation And Debt Recovery-current Grants To Local Government",TN39 3JX,GRANT
"Department for Business, Energy and Industrial Strategy","Department for Business, Energy and Industrial Strategy",08/12/2021 00:00,Current Grants To Local Government,"Science, Innovation And Growth - National Weights And Measures Laboratory",Rotherham Metropolitan Borough Council,419059,22140.00,"New Burdens 5 - Post Payment Assurance, Reconciliation And Debt Recovery-current Grants To Local Government",S60 1AE,WGA ONLY
"Department for Business, Energy and Industrial Strategy","Department for Business, Energy and Industrial Strategy",08/12/2021 00:00,Current Grants To Local Government,"Science, Innovation And Growth - National Weights And Measures Laboratory",Royal Borough Of Kensington & Chelsea,419060,29160.00,"New Burdens 5 - Post Payment Assurance, Reconciliation And Debt Recovery-current Grants To Local Government",W8 7NX,VENDOR
"Department for Business, Energy and Industrial Strategy","Department for Business, Energy and Industrial Strategy",08/12/2021 00:00,Current Grants To Local Government,"Science, Innovation And Growth - National Weights And Measures Laboratory",Royal Borough Of Kingston Upon Thames,419061,22140.00,"New Burdens 5 - Post Payment Assurance, Reconciliation And Debt Recovery-current Grants To Local Government",KT1 1EU,GRANT
"Department for Business, Energy and Industrial Strategy","Department for Business, Energy and Industrial Strategy",08/12/2021 00:00,Current Grants To Local Government,"Science, Innovation And Growth - National Weights And Measures Laboratory",Royal Borough Of Windsor And Maidenhead,419063,22140.00,"New Burdens 5 - Post Payment Assurance, Reconciliation And Debt Recovery-current Grants To Local Government",SL6 1RF,WGA ONLY
"Department for Business, Energy and Industrial Strategy","Department for Business, Energy and Industrial Strategy",08/12/2021 00:00,Current Grants To Local Government,"Science, Innovation And Growth - National Weights And Measures Laboratory",Rugby Borough Council,419064,18600.00,"New Burdens 5 - Post Payment Assurance, Reconciliation And Debt Recovery-current Grants To Local Government",CV21 2RR,GRANT
"Department for Business, Energy and Industrial Strategy","Department for Business, Energy and Industrial Strategy",08/12/2021 00:00,Current Grants To Local Government,"Science, Innovation And Growth - National Weights And Measures Laboratory",Runnymede Borough Council,419066,18600.00,"New Burdens 5 - Post Payment Assurance, Reconciliation And Debt Recovery-current Grants To Local Government",KT15 2AH,GRANT
"Department for Business, Energy and Industrial Strategy","Department for Business, Energy and Industrial Strategy",08/12/2021 00:00,Current Grants To Local Government,"Science, Innovation And Growth - National Weights And Measures Laboratory",Rushcliffe Borough Council,419068,18600.00,"New Burdens 5 - Post Payment Assurance, Reconciliation And Debt Recovery-current Grants To Local Government",NG2 7YG,GRANT
"Department for Business, Energy and Industrial Strategy","Department for Business, Energy and Industrial Strategy",08/12/2021 00:00,Current Grants To Local Government,"Science, Innovation And Growth - National Weights And Measures Laboratory",Rushmoor Borough Council,419069,18600.00,"New Burdens 5 - Post Payment Assurance, Reconciliation And Debt Recovery-current Grants To Local Government",GU14 7JU,GRANT
"Department for Business, Energy and Industrial Strategy","Department for Business, Energy and Industrial Strategy",08/12/2021 00:00,Current Grants To Local Government,"Science, Innovation And Growth - National Weights And Measures Laboratory",Rutland County Council,419070,18600.00,"New Burdens 5 - Post Payment Assurance, Reconciliation And Debt Recovery-current Grants To Local Government",LE15 6HP,GRANT
"Department for Business, Energy and Industrial Strategy","Department for Business, Energy and Industrial Strategy",08/12/2021 00:00,Current Grants To Local Government,"Science, Innovation And Growth - National Weights And Measures Laboratory",Ryedale District Council,419071,18600.00,"New Burdens 5 - Post Payment Assurance, Reconciliation And Debt Recovery-current Grants To Local Government",YO17 7HH,GRANT
"Department for Business, Energy and Industrial Strategy","Department for Business, Energy and Industrial Strategy",08/12/2021 00:00,Current Grants To Local Government,"Science, Innovation And Growth - National Weights And Measures Laboratory",Salford City Council,419072,22140.00,"New Burdens 5 - Post Payment Assurance, Reconciliation And Debt Recovery-current Grants To Local Government",M27 5AW,WGA ONLY
"Department for Business, Energy and Industrial Strategy","Department for Business, Energy and Industrial Strategy",08/12/2021 00:00,Current Grants To Local Government,"Science, Innovation And Growth - National Weights And Measures Laboratory",Sandwell Metropolitan Borough Council,419074,25620.00,"New Burdens 5 - Post Payment Assurance, Reconciliation And Debt Recovery-current Grants To Local Government",B69 3BS,GRANT
"Department for Business, Energy and Industrial Strategy","Department for Business, Energy and Industrial Strategy",08/12/2021 00:00,Current Grants To Local Government,"Science, Innovation And Growth - National Weights And Measures Laboratory",Scarborough Borough Council,419075,29160.00,"New Burdens 5 - Post Payment Assurance, Reconciliation And Debt Recovery-current Grants To Local Government",YO11 2HG,GRANT
"Department for Business, Energy and Industrial Strategy","Department for Business, Energy and Industrial Strategy",08/12/2021 00:00,Current Grants To Local Government,"Science, Innovation And Growth - National Weights And Measures Laboratory",Sedgemoor District Council,419077,18600.00,"New Burdens 5 - Post Payment Assurance, Reconciliation And Debt Recovery-current Grants To Local Government",TA6 3AR,GRANT
"Department for Business, Energy and Industrial Strategy","Department for Business, Energy and Industrial Strategy",08/12/2021 00:00,Current Grants To Local Government,"Science, Innovation And Growth - National Weights And Measures Laboratory",Sefton Council,419079,25620.00,"New Burdens 5 - Post Payment Assurance, Reconciliation And Debt Recovery-current Grants To Local Government",L20 3NJ,GRANT
"Department for Business, Energy and Industrial Strategy","Department for Business, Energy and Industrial Strategy",08/12/2021 00:00,Current Grants To Local Government,"Science, Innovation And Growth - National Weights And Measures Laboratory",Selby District Council,419080,18600.00,"New Burdens 5 - Post Payment Assurance, Reconciliation And Debt Recovery-current Grants To Local Government",YO8 9FT,WGA ONLY
"Department for Business, Energy and Industrial Strategy","Department for Business, Energy and Industrial Strategy",08/12/2021 00:00,Current Grants To Local Government,"Science, Innovation And Growth - National Weights And Measures Laboratory",Sevenoaks District Council,419081,18600.00,"New Burdens 5 - Post Payment Assurance, Reconciliation And Debt Recovery-current Grants To Local Government",TN13 1HG,GRANT
"Department for Business, Energy and Industrial Strategy","Department for Business, Energy and Industrial Strategy",08/12/2021 00:00,Current Grants To Local Government,"Science, Innovation And Growth - National Weights And Measures Laboratory",Redditch Borough Council,419083,18600.00,"New Burdens 5 - Post Payment Assurance, Reconciliation And Debt Recovery-current Grants To Local Government",B61 8DA,GRANT
"Department for Business, Energy and Industrial Strategy","Department for Business, Energy and Industrial Strategy",08/12/2021 00:00,Current Grants To Local Government,"Science, Innovation And Growth - National Weights And Measures Laboratory",Shropshire Council,419084,29160.00,"New Burdens 5 - Post Payment Assurance, Reconciliation And Debt Recovery-current Grants To Local Government",SY2 6ND,WGA ONLY
"Department for Business, Energy and Industrial Strategy","Department for Business, Energy and Industrial Strategy",08/12/2021 00:00,Current Grants To Local Government,"Science, Innovation And Growth - National Weights And Measures Laboratory",Reigate And Banstead Borough Council,419085,18600.00,"New Burdens 5 - Post Payment Assurance, Reconciliation And Debt Recovery-current Grants To Local Government",RH2 0SH,VENDOR
"Department for Business, Energy and Industrial Strategy","Department for Business, Energy and Industrial Strategy",08/12/2021 00:00,Current Grants To Local Government,"Science, Innovation And Growth - National Weights And Measures Laboratory",Solihull Metropolitan Borough Council,419087,22140.00,"New Burdens 5 - Post Payment Assurance, Reconciliation And Debt Recovery-current Grants To Local Government",B91 3QB,GRANT
"Department for Business, Energy and Industrial Strategy","Department for Business, Energy and Industrial Strategy",08/12/2021 00:00,Current Grants To Local Government,"Science, Innovation And Growth - National Weights And Measures Laboratory",Somerset West And Taunton Council,419089,22140.00,"New Burdens 5 - Post Payment Assurance, Reconciliation And Debt Recovery-current Grants To Local Government",TA1 1HE,GRANT
"Department for Business, Energy and Industrial Strategy","Department for Business, Energy and Industrial Strategy",08/12/2021 00:00,Current Grants To Local Government,"Science, Innovation And Growth - National Weights And Measures Laboratory",South Cambridgeshire District Council,419090,18600.00,"New Burdens 5 - Post Payment Assurance, Reconciliation And Debt Recovery-current Grants To Local Government",CB23 6EA,WGA ONLY
"Department for Business, Energy and Industrial Strategy","Department for Business, Energy and Industrial Strategy",08/12/2021 00:00,Current Grants To Local Government,"Science, Innovation And Growth - National Weights And Measures Laboratory",South Derbyshire District Council,419092,18600.00,"New Burdens 5 - Post Payment Assurance, Reconciliation And Debt Recovery-current Grants To Local Government",DE11 0AH,GRANT
"Department for Business, Energy and Industrial Strategy","Department for Business, Energy and Industrial Strategy",08/12/2021 00:00,Current Grants To Local Government,"Science, Innovation And Growth - National Weights And Measures Laboratory",South Gloucestershire Council,419094,22140.00,"New Burdens 5 - Post Payment Assurance, Reconciliation And Debt Recovery-current Grants To Local Government",BS37 5AF,GRANT
"Department for Business, Energy and Industrial Strategy","Department for Business, Energy and Industrial Strategy",08/12/2021 00:00,Current Grants To Local Government,"Science, Innovation And Growth - National Weights And Measures Laboratory",South Hams District Council,419095,25620.00,"New Burdens 5 - Post Payment Assurance, Reconciliation And Debt Recovery-current Grants To Local Government",TQ9 5NE,GRANT
"Department for Business, Energy and Industrial Strategy","Department for Business, Energy and Industrial Strategy",08/12/2021 00:00,Current Grants To Local Government,"Science, Innovation And Growth - National Weights And Measures Laboratory",South Holland District Council,419096,18600.00,"New Burdens 5 - Post Payment Assurance, Reconciliation And Debt Recovery-current Grants To Local Government",PE11 2XQ,GRANT
"Department for Business, Energy and Industrial Strategy","Department for Business, Energy and Industrial Strategy",08/12/2021 00:00,Current Grants To Local Government,"Science, Innovation And Growth - National Weights And Measures Laboratory",Staffordshire Moorlands District Council,419097,18600.00,"New Burdens 5 - Post Payment Assurance, Reconciliation And Debt Recovery-current Grants To Local Government",ST13 6HQ,GRANT
"Department for Business, Energy and Industrial Strategy","Department for Business, Energy and Industrial Strategy",08/12/2021 00:00,Current Grants To Local Government,"Science, Innovation And Growth - National Weights And Measures Laboratory",South Kesteven District Council,419098,18600.00,"New Burdens 5 - Post Payment Assurance, Reconciliation And Debt Recovery-current Grants To Local Government",NG31 6PZ,GRANT
"Department for Business, Energy and Industrial Strategy","Department for Business, Energy and Industrial Strategy",08/12/2021 00:00,Current Grants To Local Government,"Science, Innovation And Growth - National Weights And Measures Laboratory",South Lakeland District Council,419099,29160.00,"New Burdens 5 - Post Payment Assurance, Reconciliation And Debt Recovery-current Grants To Local Government",LA9 4DQ,GRANT
"Department for Business, Energy and Industrial Strategy","Department for Business, Energy and Industrial Strategy",08/12/2021 00:00,Current Grants To Local Government,"Science, Innovation And Growth - National Weights And Measures Laboratory",Stevenage Borough Council,419100,18600.00,"New Burdens 5 - Post Payment Assurance, Reconciliation And Debt Recovery-current Grants To Local Government",SG1 1HN,GRANT
"Department for Business, Energy and Industrial Strategy","Department for Business, Energy and Industrial Strategy",08/12/2021 00:00,Current Grants To Local Government,"Science, Innovation And Growth - National Weights And Measures Laboratory",South Norfolk Council,419101,18600.00,"New Burdens 5 - Post Payment Assurance, Reconciliation And Debt Recovery-current Grants To Local Government",NR15 2XE,GRANT
"Department for Business, Energy and Industrial Strategy","Department for Business, Energy and Industrial Strategy",08/12/2021 00:00,Current Grants To Local Government,"Science, Innovation And Growth - National Weights And Measures Laboratory",South Oxfordshire District Council,419102,18600.00,"New Burdens 5 - Post Payment Assurance, Reconciliation And Debt Recovery-current Grants To Local Government",OX14 4SB,GRANT
"Department for Business, Energy and Industrial Strategy","Department for Business, Energy and Industrial Strategy",08/12/2021 00:00,Current Grants To Local Government,"Science, Innovation And Growth - National Weights And Measures Laboratory",Richmondshire District Council,419105,18600.00,"New Burdens 5 - Post Payment Assurance, Reconciliation And Debt Recovery-current Grants To Local Government",DN10 4JX,GRANT
"Department for Business, Energy and Industrial Strategy","Department for Business, Energy and Industrial Strategy",08/12/2021 00:00,Current Grants To Local Government,"Science, Innovation And Growth - National Weights And Measures Laboratory",Stockport Metropolitan Borough Council,419106,25620.00,"New Burdens 5 - Post Payment Assurance, Reconciliation And Debt Recovery-current Grants To Local Government",SK1 3NG,GRANT
"Department for Business, Energy and Industrial Strategy","Department for Business, Energy and Industrial Strategy",08/12/2021 00:00,Current Grants To Local Government,"Science, Innovation And Growth - National Weights And Measures Laboratory",South Somerset District Council,419107,22140.00,"New Burdens 5 - Post Payment Assurance, Reconciliation And Debt Recovery-current Grants To Local Government",BA20 2HT,GRANT
"Department for Business, Energy and Industrial Strategy","Department for Business, Energy and Industrial Strategy",08/12/2021 00:00,Current Grants To Local Government,"Science, Innovation And Growth - National Weights And Measures Laboratory",South Staffordshire Council,419108,18600.00,"New Burdens 5 - Post Payment Assurance, Reconciliation And Debt Recovery-current Grants To Local Government",WV8 1PX,VENDOR
"Department for Business, Energy and Industrial Strategy","Department for Business, Energy and Industrial Strategy",08/12/2021 00:00,Current Grants To Local Government,"Science, Innovation And Growth - National Weights And Measures Laboratory",South Tyneside Council,419110,18600.00,"New Burdens 5 - Post Payment Assurance, Reconciliation And Debt Recovery-current Grants To Local Government",NE33 2RL,WGA ONLY
"Department for Business, Energy and Industrial Strategy","Department for Business, Energy and Industrial Strategy",08/12/2021 00:00,Current Grants To Local Government,"Science, Innovation And Growth - National Weights And Measures Laboratory",Southampton City Council,419111,25620.00,"New Burdens 5 - Post Payment Assurance, Reconciliation And Debt Recovery-current Grants To Local Government",SO14 7LY,VENDOR
"Department for Business, Energy and Industrial Strategy","Department for Business, Energy and Industrial Strategy",08/12/2021 00:00,Current Grants To Local Government,"Science, Innovation And Growth - National Weights And Measures Laboratory",Southend On Sea Borough Council,419114,22140.00,"New Burdens 5 - Post Payment Assurance, Reconciliation And Debt Recovery-current Grants To Local Government",SS2 6ER,WGA ONLY
"Department for Business, Energy and Industrial Strategy","Department for Business, Energy and Industrial Strategy",08/12/2021 00:00,Current Grants To Local Government,"Science, Innovation And Growth - National Weights And Measures Laboratory",Spelthorne Borough Council,419116,18600.00,"New Burdens 5 - Post Payment Assurance, Reconciliation And Debt Recovery-current Grants To Local Government",TW18 1XB,GRANT
"Department for Business, Energy and Industrial Strategy","Department for Business, Energy and Industrial Strategy",08/12/2021 00:00,Current Grants To Local Government,"Science, Innovation And Growth - National Weights And Measures Laboratory",St Albans District Council,419117,22140.00,"New Burdens 5 - Post Payment Assurance, Reconciliation And Debt Recovery-current Grants To Local Government",AL1 3JE,WGA ONLY
"Department for Business, Energy and Industrial Strategy","Department for Business, Energy and Industrial Strategy",08/12/2021 00:00,Current Grants To Local Government,"Science, Innovation And Growth - National Weights And Measures Laboratory",St Helens Council,419122,18600.00,"New Burdens 5 - Post Payment Assurance, Reconciliation And Debt Recovery-current Grants To Local Government",WA10 1HP,GRANT
"Department for Business, Energy and Industrial Strategy","Department for Business, Energy and Industrial Strategy",08/12/2021 00:00,Current Grants To Local Government,"Science, Innovation And Growth - National Weights And Measures Laboratory",Stafford Borough Council,419124,18600.00,"New Burdens 5 - Post Payment Assurance, Reconciliation And Debt Recovery-current Grants To Local Government",ST16 3AQ,GRANT
"Department for Business, Energy and Industrial Strategy","Department for Business, Energy and Industrial Strategy",08/12/2021 00:00,Current Grants To Local Government,"Science, Innovation And Growth - National Weights And Measures Laboratory",Stockton Borough Council,419143,22140.00,"New Burdens 5 - Post Payment Assurance, Reconciliation And Debt Recovery-current Grants To Local Government",TS18 1LD,WGA ONLY
"Department for Business, Energy and Industrial Strategy","Department for Business, Energy and Industrial Strategy",08/12/2021 00:00,Current Grants To Local Government,"Science, Innovation And Growth - National Weights And Measures Laboratory",Stoke-on-trent City Council,419145,25620.00,"New Burdens 5 - Post Payment Assurance, Reconciliation And Debt Recovery-current Grants To Local Government",ST4 1HH,WGA ONLY
"Department for Business, Energy and Industrial Strategy","Department for Business, Energy and Industrial Strategy",08/12/2021 00:00,Current Grants To Local Government,"Science, Innovation And Growth - National Weights And Measures Laboratory",Stratford-on-avon District Council,419146,22140.00,"New Burdens 5 - Post Payment Assurance, Reconciliation And Debt Recovery-current Grants To Local Government",CV37 6HX,GRANT
"Department for Business, Energy and Industrial Strategy","Department for Business, Energy and Industrial Strategy",08/12/2021 00:00,Current Grants To Local Government,"Science, Innovation And Growth - National Weights And Measures Laboratory",Stroud District Council,419147,18600.00,"New Burdens 5 - Post Payment Assurance, Reconciliation And Debt Recovery-current Grants To Local Government",GL5 4UB,VENDOR
"Department for Business, Energy and Industrial Strategy","Department for Business, Energy and Industrial Strategy",08/12/2021 00:00,Current Grants To Local Government,"Science, Innovation And Growth - National Weights And Measures Laboratory",Sunderland City Council,419150,25620.00,"New Burdens 5 - Post Payment Assurance, Reconciliation And Debt Recovery-current Grants To Local Government",SR2 7DN,WGA ONLY
"Department for Business, Energy and Industrial Strategy","Department for Business, Energy and Industrial Strategy",08/12/2021 00:00,Current Grants To Local Government,"Science, Innovation And Growth - National Weights And Measures Laboratory",Sheffield City Council,419151,29160.00,"New Burdens 5 - Post Payment Assurance, Reconciliation And Debt Recovery-current Grants To Local Government",S1 2HH,WGA ONLY
"Department for Business, Energy and Industrial Strategy","Department for Business, Energy and Industrial Strategy",08/12/2021 00:00,Current Grants To Local Government,"Science, Innovation And Growth - National Weights And Measures Laboratory",Swale Borough Council,419152,18600.00,"New Burdens 5 - Post Payment Assurance, Reconciliation And Debt Recovery-current Grants To Local Government",ME10 3HT,GRANT
"Department for Business, Energy and Industrial Strategy","Department for Business, Energy and Industrial Strategy",08/12/2021 00:00,Current Grants To Local Government,"Science, Innovation And Growth - National Weights And Measures Laboratory",Swindon Borough Council,419154,22140.00,"New Burdens 5 - Post Payment Assurance, Reconciliation And Debt Recovery-current Grants To Local Government",SN1 2JH,WGA ONLY
"Department for Business, Energy and Industrial Strategy","Department for Business, Energy and Industrial Strategy",08/12/2021 00:00,Current Grants To Local Government,"Science, Innovation And Growth - National Weights And Measures Laboratory",Tameside Metropolitan Borough Council,419155,22140.00,"New Burdens 5 - Post Payment Assurance, Reconciliation And Debt Recovery-current Grants To Local Government",OL6 6BH,GRANT
"Department for Business, Energy and Industrial Strategy","Department for Business, Energy and Industrial Strategy",08/12/2021 00:00,Current Grants To Local Government,"Science, Innovation And Growth - National Weights And Measures Laboratory",Tamworth Borough Council,419156,18600.00,"New Burdens 5 - Post Payment Assurance, Reconciliation And Debt Recovery-current Grants To Local Government",B79 7BZ,GRANT
"Department for Business, Energy and Industrial Strategy","Department for Business, Energy and Industrial Strategy",08/12/2021 00:00,Current Grants To Local Government,"Science, Innovation And Growth - National Weights And Measures Laboratory",South Ribble Borough Council,419157,18600.00,"New Burdens 5 - Post Payment Assurance, Reconciliation And Debt Recovery-current Grants To Local Government",PR25 1DH,VENDOR
"Department for Business, Energy and Industrial Strategy","Department for Business, Energy and Industrial Strategy",08/12/2021 00:00,Current Grants To Local Government,"Science, Innovation And Growth - National Weights And Measures Laboratory",Teignbridge District Council,419158,22140.00,"New Burdens 5 - Post Payment Assurance, Reconciliation And Debt Recovery-current Grants To Local Government",TQ12 4XX,WGA ONLY
"Department for Business, Energy and Industrial Strategy","Department for Business, Energy and Industrial Strategy",08/12/2021 00:00,Current Grants To Local Government,"Science, Innovation And Growth - National Weights And Measures Laboratory",Telford And Wrekin Council,419159,22140.00,"New Burdens 5 - Post Payment Assurance, Reconciliation And Debt Recovery-current Grants To Local Government",TF3 4NT,WGA ONLY
"Department for Business, Energy and Industrial Strategy","Department for Business, Energy and Industrial Strategy",08/12/2021 00:00,Current Grants To Local Government,"Science, Innovation And Growth - National Weights And Measures Laboratory",Tendring District Council,419160,22140.00,"New Burdens 5 - Post Payment Assurance, Reconciliation And Debt Recovery-current Grants To Local Government",CO15 1SE,GRANT
"Department for Business, Energy and Industrial Strategy","Department for Business, Energy and Industrial Strategy",08/12/2021 00:00,Current Grants To Local Government,"Science, Innovation And Growth - National Weights And Measures Laboratory",Test Valley Borough Council,419162,18600.00,"New Burdens 5 - Post Payment Assurance, Reconciliation And Debt Recovery-current Grants To Local Government",SP10 3AJ,GRANT
"Department for Business, Energy and Industrial Strategy","Department for Business, Energy and Industrial Strategy",08/12/2021 00:00,Current Grants To Local Government,"Science, Innovation And Growth - National Weights And Measures Laboratory",Tewkesbury Borough Council,419164,18600.00,"New Burdens 5 - Post Payment Assurance, Reconciliation And Debt Recovery-current Grants To Local Government",GL20 5TT,GRANT
"Department for Business, Energy and Industrial Strategy","Department for Business, Energy and Industrial Strategy",08/12/2021 00:00,Current Grants To Local Government,"Science, Innovation And Growth - National Weights And Measures Laboratory",Thanet District Council,419165,22140.00,"New Burdens 5 - Post Payment Assurance, Reconciliation And Debt Recovery-current Grants To Local Government",CT9 1XZ,GRANT
"Department for Business, Energy and Industrial Strategy","Department for Business, Energy and Industrial Strategy",08/12/2021 00:00,Current Grants To Local Government,"Science, Innovation And Growth - National Weights And Measures Laboratory",Surrey Heath Borough Council,419166,18600.00,"New Burdens 5 - Post Payment Assurance, Reconciliation And Debt Recovery-current Grants To Local Government",GU15 2BB,GRANT
"Department for Business, Energy and Industrial Strategy","Department for Business, Energy and Industrial Strategy",08/12/2021 00:00,Current Grants To Local Government,"Science, Innovation And Growth - National Weights And Measures Laboratory",Thurrock Borough Council,419167,18600.00,"New Burdens 5 - Post Payment Assurance, Reconciliation And Debt Recovery-current Grants To Local Government",RM17 6SL,VENDOR
"Department for Business, Energy and Industrial Strategy","Department for Business, Energy and Industrial Strategy",08/12/2021 00:00,Current Grants To Local Government,"Science, Innovation And Growth - National Weights And Measures Laboratory",Tonbridge And Malling Borough Council,419169,18600.00,"New Burdens 5 - Post Payment Assurance, Reconciliation And Debt Recovery-current Grants To Local Government",ME14 4HZ,GRANT
"Department for Business, Energy and Industrial Strategy","Department for Business, Energy and Industrial Strategy",08/12/2021 00:00,Current Grants To Local Government,"Science, Innovation And Growth - National Weights And Measures Laboratory",Torbay Council,419170,25620.00,"New Burdens 5 - Post Payment Assurance, Reconciliation And Debt Recovery-current Grants To Local Government",TQ1 3DR,VENDOR
"Department for Business, Energy and Industrial Strategy","Department for Business, Energy and Industrial Strategy",08/12/2021 00:00,Current Grants To Local Government,"Science, Innovation And Growth - National Weights And Measures Laboratory",Torridge District Council,419171,22140.00,"New Burdens 5 - Post Payment Assurance, Reconciliation And Debt Recovery-current Grants To Local Government",EX39 2QG,GRANT
"Department for Business, Energy and Industrial Strategy","Department for Business, Energy and Industrial Strategy",08/12/2021 00:00,Current Grants To Local Government,"Science, Innovation And Growth - National Weights And Measures Laboratory",Trafford Council,419173,25620.00,"New Burdens 5 - Post Payment Assurance, Reconciliation And Debt Recovery-current Grants To Local Government",M32 0TH,GRANT
"Department for Business, Energy and Industrial Strategy","Department for Business, Energy and Industrial Strategy",08/12/2021 00:00,Current Grants To Local Government,"Science, Innovation And Growth - National Weights And Measures Laboratory",Tunbridge Wells Borough Council,419174,18600.00,"New Burdens 5 - Post Payment Assurance, Reconciliation And Debt Recovery-current Grants To Local Government",TN1 1RS,GRANT
"Department for Business, Energy and Industrial Strategy","Department for Business, Energy and Industrial Strategy",08/12/2021 00:00,Current Grants To Local Government,"Science, Innovation And Growth - National Weights And Measures Laboratory",Uttlesford District Council,419175,18600.00,"New Burdens 5 - Post Payment Assurance, Reconciliation And Debt Recovery-current Grants To Local Government",CB11 4ER,GRANT
"Department for Business, Energy and Industrial Strategy","Department for Business, Energy and Industrial Strategy",08/12/2021 00:00,Current Grants To Local Government,"Science, Innovation And Growth - National Weights And Measures Laboratory",Vale Of White Horse District Council,419176,18600.00,"New Burdens 5 - Post Payment Assurance, Reconciliation And Debt Recovery-current Grants To Local Government",OX14 4SB,WGA ONLY
"Department for Business, Energy and Industrial Strategy","Department for Business, Energy and Industrial Strategy",08/12/2021 00:00,Current Grants To Local Government,"Science, Innovation And Growth - National Weights And Measures Laboratory",City Of Wakefield Metropolitan District Council,419178,25620.00,"New Burdens 5 - Post Payment Assurance, Reconciliation And Debt Recovery-current Grants To Local Government",WF1 2HQ,WGA ONLY
"Department for Business, Energy and Industrial Strategy","Department for Business, Energy and Industrial Strategy",08/12/2021 00:00,Current Grants To Local Government,"Science, Innovation And Growth - National Weights And Measures Laboratory",Walsall Metropolitan Borough Council,419179,22140.00,"New Burdens 5 - Post Payment Assurance, Reconciliation And Debt Recovery-current Grants To Local Government",WS1 1TP,GRANT
"Department for Business, Energy and Industrial Strategy","Department for Business, Energy and Industrial Strategy",08/12/2021 00:00,Current Grants To Local Government,"Science, Innovation And Growth - National Weights And Measures Laboratory",Warrington Borough Council,419181,22140.00,"New Burdens 5 - Post Payment Assurance, Reconciliation And Debt Recovery-current Grants To Local Government",WA1 1UH,WGA ONLY
"Department for Business, Energy and Industrial Strategy","Department for Business, Energy and Industrial Strategy",08/12/2021 00:00,Current Grants To Local Government,"Science, Innovation And Growth - National Weights And Measures Laboratory",Warwick District Council,419184,22140.00,"New Burdens 5 - Post Payment Assurance, Reconciliation And Debt Recovery-current Grants To Local Government",CV32 5HZ,GRANT
"Department for Business, Energy and Industrial Strategy","Department for Business, Energy and Industrial Strategy",08/12/2021 00:00,Current Grants To Local Government,"Science, Innovation And Growth - National Weights And Measures Laboratory",Tandridge District Council,419185,18600.00,"New Burdens 5 - Post Payment Assurance, Reconciliation And Debt Recovery-current Grants To Local Government",RH8 0BT,GRANT
"Department for Business, Energy and Industrial Strategy","Department for Business, Energy and Industrial Strategy",08/12/2021 00:00,Current Grants To Local Government,"Science, Innovation And Growth - National Weights And Measures Laboratory",Waverley Borough Council,419186,18600.00,"New Burdens 5 - Post Payment Assurance, Reconciliation And Debt Recovery-current Grants To Local Government",GU7 1HR,VENDOR
"Department for Business, Energy and Industrial Strategy","Department for Business, Energy and Industrial Strategy",08/12/2021 00:00,Current Grants To Local Government,"Science, Innovation And Growth - National Weights And Measures Laboratory",Three Rivers District Council,419187,18600.00,"New Burdens 5 - Post Payment Assurance, Reconciliation And Debt Recovery-current Grants To Local Government",WD3 1RL,GRANT
"Department for Business, Energy and Industrial Strategy","Department for Business, Energy and Industrial Strategy",08/12/2021 00:00,Current Grants To Local Government,"Science, Innovation And Growth - National Weights And Measures Laboratory",Welwyn Hatfield Borough Council,419189,18600.00,"New Burdens 5 - Post Payment Assurance, Reconciliation And Debt Recovery-current Grants To Local Government",AL8 6AE,GRANT
"Department for Business, Energy and Industrial Strategy","Department for Business, Energy and Industrial Strategy",08/12/2021 00:00,Current Grants To Local Government,"Science, Innovation And Growth - National Weights And Measures Laboratory",West Berkshire Council,419191,22140.00,"New Burdens 5 - Post Payment Assurance, Reconciliation And Debt Recovery-current Grants To Local Government",RG14 5LD,GRANT
"Department for Business, Energy and Industrial Strategy","Department for Business, Energy and Industrial Strategy",08/12/2021 00:00,Current Grants To Local Government,"Science, Innovation And Growth - National Weights And Measures Laboratory",West Devon Borough Council,419192,18600.00,"New Burdens 5 - Post Payment Assurance, Reconciliation And Debt Recovery-current Grants To Local Government",PL19 0BZ,GRANT
"Department for Business, Energy and Industrial Strategy","Department for Business, Energy and Industrial Strategy",08/12/2021 00:00,Current Grants To Local Government,"Science, Innovation And Growth - National Weights And Measures Laboratory",West Lancashire Borough Coucil,419193,18600.00,"New Burdens 5 - Post Payment Assurance, Reconciliation And Debt Recovery-current Grants To Local Government",L39 2DF,GRANT
"Department for Business, Energy and Industrial Strategy","Department for Business, Energy and Industrial Strategy",08/12/2021 00:00,Current Grants To Local Government,"Science, Innovation And Growth - National Weights And Measures Laboratory",West Lindsey District Council,419194,18600.00,"New Burdens 5 - Post Payment Assurance, Reconciliation And Debt Recovery-current Grants To Local Government",DN21 2NA,GRANT
